{"text_format":"1","workbook":"xlsx","n_sheets":7,"sheets":["INSERIMENTO RISULTATI","PUNTEGGI","CLASSIFICA","REGOLAMENTO","CLASSIFICA UFFICIO","UFFICIO","PARAMETRI"],"not_rendered":{"charts":0,"images":16,"macros":1,"external_links":0,"defined_names":7,"comments":0,"pivot_tables":0},"unopened":[],"bounds":{"document_bytes":16777216,"sheet_cells":100000,"rows_first":2000,"rows_last":500,"rows_between":2000,"halvings":0,"cell_chars":16384,"cell_head_chars":4096},"cells_cut":0,"cells_raw":0,"read":"whole","date_system":"1900"}

{"sheet":"INSERIMENTO RISULTATI","index":0,"n_rows":52,"n_cols":11,"rows_kept":52,"cut":false,"hidden":false,"merged":[[51,1,51,5],[36,8,36,10],[50,8,50,10],[37,1,37,4],[38,3,38,4],[1,8,1,10],[2,1,2,9],[4,0,5,0],[4,1,5,1],[4,2,5,2],[4,3,5,3],[4,4,4,5],[4,6,4,7],[4,8,4,9]]}
["classe:",null,"Istituto:",null,null,"docente:"]
[null,null,null,null,null,null,null,null,"PUNTEGGI"]
["superiori","multiPROVE: (FUNICELLA - ESAGONO - LANCIO SEDUTI)",null,null,null,null,null,null,null,null,"REGOLAMENTO"]
[]
["N.","COGNOME","NOME","SESSO (F)","FUNICELLA",null,"ESAGONO",null,"LANCIO",null,"GENERALE"]
[null,null,null,null,"MISURA","PUNTI","TEMPO","PUNTI","MISURA","PUNTI","TOT. PUNTI"]
[1,null,null,"F"]
[2,null,null,"F"]
[3,null,null,"F"]
[4,null,null,"F"]
[5,null,null,"F"]
[6,null,null,"F"]
[7,null,null,"F"]
[8,null,null,"F"]
[9,null,null,"F"]
[10,null,null,"F"]
[11,null,null,"F"]
[12,null,null,"F"]
[13,null,null,"F"]
[14,null,null,"F"]
[15,null,null,"F"]
[16,null,null,"F"]
[17,null,null,"F"]
[18,null,null,"F"]
[19,null,null,"F"]
[20,null,null,"F"]
[21,null,null,"F"]
[22,null,null,"F"]
[23,null,null,"F"]
[24,null,null,"F"]
[25,null,null,"F"]
[26,null,null,"F"]
[27,null,null,"F"]
[28,null,null,"F"]
[29,null,null,"F"]
[30,null,null,"F"]
[null,null,null,null,null,null,null,null,"PUNTEGGI"]
[null,"STAFFETTA (10 X 150 M A NAVETTA)",null,null,null,null,null,null,null,null,"REGOLAMENTO"]
["superiori",{"$f":"B1","v":0},null,{"$f":"D1","v":0}]
["N.","COGNOME","NOME","SESSO (F)","TEMPO"]
[1,null,null,"F"]
[2,null,null,"F"]
[3,null,null,"F"]
[4,null,null,"F"]
[5,null,null,"F"]
[6,null,null,"F"]
[7,null,null,"F"]
[8,null,null,"F"]
[9,null,null,"F"]
[10,null,null,"F"]
[null,null,null,null,null,null,null,null,"PUNTEGGI"]
[null,"PUNTEGGI PROVE",null,null,null,null,null,null,null,null,"REGOLAMENTO"]

{"sheet":"PUNTEGGI","index":1,"n_rows":54,"n_cols":11,"rows_kept":54,"cut":false,"hidden":false,"merged":[[36,8,36,10],[4,0,5,0],[4,1,5,1],[4,2,5,2],[4,3,5,3],[4,4,4,5],[0,6,0,7],[4,6,4,7],[2,1,2,9],[4,8,4,9],[1,8,1,10],[52,1,52,5],[38,1,38,4],[39,3,39,4],[37,8,37,10],[51,8,51,10]]}
[null,{"$f":"'INSERIMENTO RISULTATI'!B1","v":0},"Istituto:",{"$f":"'INSERIMENTO RISULTATI'!D1","v":0},null,"docente:",{"$f":"'INSERIMENTO RISULTATI'!G1","v":0}]
[null,null,null,null,null,null,null,null,"INSERIMENTO RISULTATI"]
["superiori","multiPROVE: (FUNICELLA - ESAGONO - LANCIO SEDUTI)",null,null,null,null,null,null,null,null,"REGOLAMENTO"]
[null,null,null,null,null,null,null,null,null,null,"CLASSIFICA"]
["N.","COGNOME","NOME","SESSO (F)","FUNICELLA",null,"ESAGONO",null,"LANCIO",null,"GENERALE"]
[null,null,null,null,"MISURA","PUNTI","TEMPO","PUNTI","MISURA","PUNTI","TOT. PUNTI"]
[1,{"$f":"'INSERIMENTO RISULTATI'!B7","v":0},{"$f":"'INSERIMENTO RISULTATI'!C7","v":0},"F",{"$f":"'INSERIMENTO RISULTATI'!E7","v":0},{"$f":"IF(PUNTEGGI!E7=\"\",\"\",IF(PUNTEGGI!E7=PARAMETRI!$G$11,0,IF(PUNTEGGI!E7>PARAMETRI!$G$6,5,IF(PUNTEGGI!E7>PARAMETRI!$G$7,4,IF(PUNTEGGI!E7>PARAMETRI!$G$8,3,IF(PUNTEGGI!E7>PARAMETRI!$G$9,2,IF(PUNTEGGI!E7>PARAMETRI!$G$10,2,1)))))))","v":0},{"$f":"'INSERIMENTO RISULTATI'!G7","v":0},{"$f":"IF(PUNTEGGI!G7=\"\",\"\",IF(PUNTEGGI!G7<PARAMETRI!$G$20,0,IF(PUNTEGGI!G7<PARAMETRI!$G$15,5,IF(PUNTEGGI!G7<PARAMETRI!$G$16,4,IF(PUNTEGGI!G7<PARAMETRI!$G$17,3,IF(PUNTEGGI!G7<PARAMETRI!$G$18,2,IF(PUNTEGGI!G7<PARAMETRI!$G$19,2,1)))))))","v":0},{"$f":"'INSERIMENTO RISULTATI'!I7","v":0},{"$f":"IF(PUNTEGGI!I7=\"\",\"\",IF(PUNTEGGI!I7=PARAMETRI!$G$29,0,IF(PUNTEGGI!I7>PARAMETRI!$G$24,5,IF(PUNTEGGI!I7>PARAMETRI!$G$25,4,IF(PUNTEGGI!I7>PARAMETRI!$G$26,3,IF(PUNTEGGI!I7>PARAMETRI!$G$27,2,IF(PUNTEGGI!I7>PARAMETRI!$G$28,2,1)))))))","v":0},{"$f":"SUM(F7,H7,J7)","v":0}]
[2,{"$f":"'INSERIMENTO RISULTATI'!B8","v":0},{"$f":"'INSERIMENTO RISULTATI'!C8","v":0},"F",{"$f":"'INSERIMENTO RISULTATI'!E8","v":0},{"$f":"IF(PUNTEGGI!E8=\"\",\"\",IF(PUNTEGGI!E8=PARAMETRI!$G$11,0,IF(PUNTEGGI!E8>PARAMETRI!$G$6,5,IF(PUNTEGGI!E8>PARAMETRI!$G$7,4,IF(PUNTEGGI!E8>PARAMETRI!$G$8,3,IF(PUNTEGGI!E8>PARAMETRI!$G$9,2,IF(PUNTEGGI!E8>PARAMETRI!$G$10,2,1)))))))","v":0},{"$f":"'INSERIMENTO RISULTATI'!G8","v":0},{"$f":"IF(PUNTEGGI!G8=\"\",\"\",IF(PUNTEGGI!G8<PARAMETRI!$G$20,0,IF(PUNTEGGI!G8<PARAMETRI!$G$15,5,IF(PUNTEGGI!G8<PARAMETRI!$G$16,4,IF(PUNTEGGI!G8<PARAMETRI!$G$17,3,IF(PUNTEGGI!G8<PARAMETRI!$G$18,2,IF(PUNTEGGI!G8<PARAMETRI!$G$19,2,1)))))))","v":0},{"$f":"'INSERIMENTO RISULTATI'!I8","v":0},{"$f":"IF(PUNTEGGI!I8=\"\",\"\",IF(PUNTEGGI!I8=PARAMETRI!$G$29,0,IF(PUNTEGGI!I8>PARAMETRI!$G$24,5,IF(PUNTEGGI!I8>PARAMETRI!$G$25,4,IF(PUNTEGGI!I8>PARAMETRI!$G$26,3,IF(PUNTEGGI!I8>PARAMETRI!$G$27,2,IF(PUNTEGGI!I8>PARAMETRI!$G$28,2,1)))))))","v":0},{"$f":"SUM(F8,H8,J8)","v":0}]
[3,{"$f":"'INSERIMENTO RISULTATI'!B9","v":0},{"$f":"'INSERIMENTO RISULTATI'!C9","v":0},"F",{"$f":"'INSERIMENTO RISULTATI'!E9","v":0},{"$f":"IF(PUNTEGGI!E9=\"\",\"\",IF(PUNTEGGI!E9=PARAMETRI!$G$11,0,IF(PUNTEGGI!E9>PARAMETRI!$G$6,5,IF(PUNTEGGI!E9>PARAMETRI!$G$7,4,IF(PUNTEGGI!E9>PARAMETRI!$G$8,3,IF(PUNTEGGI!E9>PARAMETRI!$G$9,2,IF(PUNTEGGI!E9>PARAMETRI!$G$10,2,1)))))))","v":0},{"$f":"'INSERIMENTO RISULTATI'!G9","v":0},{"$f":"IF(PUNTEGGI!G9=\"\",\"\",IF(PUNTEGGI!G9<PARAMETRI!$G$20,0,IF(PUNTEGGI!G9<PARAMETRI!$G$15,5,IF(PUNTEGGI!G9<PARAMETRI!$G$16,4,IF(PUNTEGGI!G9<PARAMETRI!$G$17,3,IF(PUNTEGGI!G9<PARAMETRI!$G$18,2,IF(PUNTEGGI!G9<PARAMETRI!$G$19,2,1)))))))","v":0},{"$f":"'INSERIMENTO RISULTATI'!I9","v":0},{"$f":"IF(PUNTEGGI!I9=\"\",\"\",IF(PUNTEGGI!I9=PARAMETRI!$G$29,0,IF(PUNTEGGI!I9>PARAMETRI!$G$24,5,IF(PUNTEGGI!I9>PARAMETRI!$G$25,4,IF(PUNTEGGI!I9>PARAMETRI!$G$26,3,IF(PUNTEGGI!I9>PARAMETRI!$G$27,2,IF(PUNTEGGI!I9>PARAMETRI!$G$28,2,1)))))))","v":0},0]
[4,{"$f":"'INSERIMENTO RISULTATI'!B10","v":0},{"$f":"'INSERIMENTO RISULTATI'!C10","v":0},"F",{"$f":"'INSERIMENTO RISULTATI'!E10","v":0},{"$f":"IF(PUNTEGGI!E10=\"\",\"\",IF(PUNTEGGI!E10=PARAMETRI!$G$11,0,IF(PUNTEGGI!E10>PARAMETRI!$G$6,5,IF(PUNTEGGI!E10>PARAMETRI!$G$7,4,IF(PUNTEGGI!E10>PARAMETRI!$G$8,3,IF(PUNTEGGI!E10>PARAMETRI!$G$9,2,IF(PUNTEGGI!E10>PARAMETRI!$G$10,2,1)))))))","v":0},{"$f":"'INSERIMENTO RISULTATI'!G10","v":0},{"$f":"IF(PUNTEGGI!G10=\"\",\"\",IF(PUNTEGGI!G10<PARAMETRI!$G$20,0,IF(PUNTEGGI!G10<PARAMETRI!$G$15,5,IF(PUNTEGGI!G10<PARAMETRI!$G$16,4,IF(PUNTEGGI!G10<PARAMETRI!$G$17,3,IF(PUNTEGGI!G10<PARAMETRI!$G$18,2,IF(PUNTEGGI!G10<PARAMETRI!$G$19,2,1)))))))","v":0},{"$f":"'INSERIMENTO RISULTATI'!I10","v":0},{"$f":"IF(PUNTEGGI!I10=\"\",\"\",IF(PUNTEGGI!I10=PARAMETRI!$G$29,0,IF(PUNTEGGI!I10>PARAMETRI!$G$24,5,IF(PUNTEGGI!I10>PARAMETRI!$G$25,4,IF(PUNTEGGI!I10>PARAMETRI!$G$26,3,IF(PUNTEGGI!I10>PARAMETRI!$G$27,2,IF(PUNTEGGI!I10>PARAMETRI!$G$28,2,1)))))))","v":0},0]
[5,{"$f":"'INSERIMENTO RISULTATI'!B11","v":0},{"$f":"'INSERIMENTO RISULTATI'!C11","v":0},"F",{"$f":"'INSERIMENTO RISULTATI'!E11","v":0},{"$f":"IF(PUNTEGGI!E11=\"\",\"\",IF(PUNTEGGI!E11=PARAMETRI!$G$11,0,IF(PUNTEGGI!E11>PARAMETRI!$G$6,5,IF(PUNTEGGI!E11>PARAMETRI!$G$7,4,IF(PUNTEGGI!E11>PARAMETRI!$G$8,3,IF(PUNTEGGI!E11>PARAMETRI!$G$9,2,IF(PUNTEGGI!E11>PARAMETRI!$G$10,2,1)))))))","v":0},{"$f":"'INSERIMENTO RISULTATI'!G11","v":0},{"$f":"IF(PUNTEGGI!G11=\"\",\"\",IF(PUNTEGGI!G11<PARAMETRI!$G$20,0,IF(PUNTEGGI!G11<PARAMETRI!$G$15,5,IF(PUNTEGGI!G11<PARAMETRI!$G$16,4,IF(PUNTEGGI!G11<PARAMETRI!$G$17,3,IF(PUNTEGGI!G11<PARAMETRI!$G$18,2,IF(PUNTEGGI!G11<PARAMETRI!$G$19,2,1)))))))","v":0},{"$f":"'INSERIMENTO RISULTATI'!I11","v":0},{"$f":"IF(PUNTEGGI!I11=\"\",\"\",IF(PUNTEGGI!I11=PARAMETRI!$G$29,0,IF(PUNTEGGI!I11>PARAMETRI!$G$24,5,IF(PUNTEGGI!I11>PARAMETRI!$G$25,4,IF(PUNTEGGI!I11>PARAMETRI!$G$26,3,IF(PUNTEGGI!I11>PARAMETRI!$G$27,2,IF(PUNTEGGI!I11>PARAMETRI!$G$28,2,1)))))))","v":0},0]
[6,{"$f":"'INSERIMENTO RISULTATI'!B12","v":0},{"$f":"'INSERIMENTO RISULTATI'!C12","v":0},"F",{"$f":"'INSERIMENTO RISULTATI'!E12","v":0},{"$f":"IF(PUNTEGGI!E12=\"\",\"\",IF(PUNTEGGI!E12=PARAMETRI!$G$11,0,IF(PUNTEGGI!E12>PARAMETRI!$G$6,5,IF(PUNTEGGI!E12>PARAMETRI!$G$7,4,IF(PUNTEGGI!E12>PARAMETRI!$G$8,3,IF(PUNTEGGI!E12>PARAMETRI!$G$9,2,IF(PUNTEGGI!E12>PARAMETRI!$G$10,2,1)))))))","v":0},{"$f":"'INSERIMENTO RISULTATI'!G12","v":0},{"$f":"IF(PUNTEGGI!G12=\"\",\"\",IF(PUNTEGGI!G12<PARAMETRI!$G$20,0,IF(PUNTEGGI!G12<PARAMETRI!$G$15,5,IF(PUNTEGGI!G12<PARAMETRI!$G$16,4,IF(PUNTEGGI!G12<PARAMETRI!$G$17,3,IF(PUNTEGGI!G12<PARAMETRI!$G$18,2,IF(PUNTEGGI!G12<PARAMETRI!$G$19,2,1)))))))","v":0},{"$f":"'INSERIMENTO RISULTATI'!I12","v":0},{"$f":"IF(PUNTEGGI!I12=\"\",\"\",IF(PUNTEGGI!I12=PARAMETRI!$G$29,0,IF(PUNTEGGI!I12>PARAMETRI!$G$24,5,IF(PUNTEGGI!I12>PARAMETRI!$G$25,4,IF(PUNTEGGI!I12>PARAMETRI!$G$26,3,IF(PUNTEGGI!I12>PARAMETRI!$G$27,2,IF(PUNTEGGI!I12>PARAMETRI!$G$28,2,1)))))))","v":0},0]
[7,{"$f":"'INSERIMENTO RISULTATI'!B13","v":0},{"$f":"'INSERIMENTO RISULTATI'!C13","v":0},"F",{"$f":"'INSERIMENTO RISULTATI'!E13","v":0},{"$f":"IF(PUNTEGGI!E13=\"\",\"\",IF(PUNTEGGI!E13=PARAMETRI!$G$11,0,IF(PUNTEGGI!E13>PARAMETRI!$G$6,5,IF(PUNTEGGI!E13>PARAMETRI!$G$7,4,IF(PUNTEGGI!E13>PARAMETRI!$G$8,3,IF(PUNTEGGI!E13>PARAMETRI!$G$9,2,IF(PUNTEGGI!E13>PARAMETRI!$G$10,2,1)))))))","v":0},{"$f":"'INSERIMENTO RISULTATI'!G13","v":0},{"$f":"IF(PUNTEGGI!G13=\"\",\"\",IF(PUNTEGGI!G13<PARAMETRI!$G$20,0,IF(PUNTEGGI!G13<PARAMETRI!$G$15,5,IF(PUNTEGGI!G13<PARAMETRI!$G$16,4,IF(PUNTEGGI!G13<PARAMETRI!$G$17,3,IF(PUNTEGGI!G13<PARAMETRI!$G$18,2,IF(PUNTEGGI!G13<PARAMETRI!$G$19,2,1)))))))","v":0},{"$f":"'INSERIMENTO RISULTATI'!I13","v":0},{"$f":"IF(PUNTEGGI!I13=\"\",\"\",IF(PUNTEGGI!I13=PARAMETRI!$G$29,0,IF(PUNTEGGI!I13>PARAMETRI!$G$24,5,IF(PUNTEGGI!I13>PARAMETRI!$G$25,4,IF(PUNTEGGI!I13>PARAMETRI!$G$26,3,IF(PUNTEGGI!I13>PARAMETRI!$G$27,2,IF(PUNTEGGI!I13>PARAMETRI!$G$28,2,1)))))))","v":0},0]
[8,{"$f":"'INSERIMENTO RISULTATI'!B14","v":0},{"$f":"'INSERIMENTO RISULTATI'!C14","v":0},"F",{"$f":"'INSERIMENTO RISULTATI'!E14","v":0},{"$f":"IF(PUNTEGGI!E14=\"\",\"\",IF(PUNTEGGI!E14=PARAMETRI!$G$11,0,IF(PUNTEGGI!E14>PARAMETRI!$G$6,5,IF(PUNTEGGI!E14>PARAMETRI!$G$7,4,IF(PUNTEGGI!E14>PARAMETRI!$G$8,3,IF(PUNTEGGI!E14>PARAMETRI!$G$9,2,IF(PUNTEGGI!E14>PARAMETRI!$G$10,2,1)))))))","v":0},{"$f":"'INSERIMENTO RISULTATI'!G14","v":0},{"$f":"IF(PUNTEGGI!G14=\"\",\"\",IF(PUNTEGGI!G14<PARAMETRI!$G$20,0,IF(PUNTEGGI!G14<PARAMETRI!$G$15,5,IF(PUNTEGGI!G14<PARAMETRI!$G$16,4,IF(PUNTEGGI!G14<PARAMETRI!$G$17,3,IF(PUNTEGGI!G14<PARAMETRI!$G$18,2,IF(PUNTEGGI!G14<PARAMETRI!$G$19,2,1)))))))","v":0},{"$f":"'INSERIMENTO RISULTATI'!I14","v":0},{"$f":"IF(PUNTEGGI!I14=\"\",\"\",IF(PUNTEGGI!I14=PARAMETRI!$G$29,0,IF(PUNTEGGI!I14>PARAMETRI!$G$24,5,IF(PUNTEGGI!I14>PARAMETRI!$G$25,4,IF(PUNTEGGI!I14>PARAMETRI!$G$26,3,IF(PUNTEGGI!I14>PARAMETRI!$G$27,2,IF(PUNTEGGI!I14>PARAMETRI!$G$28,2,1)))))))","v":0},0]
[9,{"$f":"'INSERIMENTO RISULTATI'!B15","v":0},{"$f":"'INSERIMENTO RISULTATI'!C15","v":0},"F",{"$f":"'INSERIMENTO RISULTATI'!E15","v":0},{"$f":"IF(PUNTEGGI!E15=\"\",\"\",IF(PUNTEGGI!E15=PARAMETRI!$G$11,0,IF(PUNTEGGI!E15>PARAMETRI!$G$6,5,IF(PUNTEGGI!E15>PARAMETRI!$G$7,4,IF(PUNTEGGI!E15>PARAMETRI!$G$8,3,IF(PUNTEGGI!E15>PARAMETRI!$G$9,2,IF(PUNTEGGI!E15>PARAMETRI!$G$10,2,1)))))))","v":0},{"$f":"'INSERIMENTO RISULTATI'!G15","v":0},{"$f":"IF(PUNTEGGI!G15=\"\",\"\",IF(PUNTEGGI!G15<PARAMETRI!$G$20,0,IF(PUNTEGGI!G15<PARAMETRI!$G$15,5,IF(PUNTEGGI!G15<PARAMETRI!$G$16,4,IF(PUNTEGGI!G15<PARAMETRI!$G$17,3,IF(PUNTEGGI!G15<PARAMETRI!$G$18,2,IF(PUNTEGGI!G15<PARAMETRI!$G$19,2,1)))))))","v":0},{"$f":"'INSERIMENTO RISULTATI'!I15","v":0},{"$f":"IF(PUNTEGGI!I15=\"\",\"\",IF(PUNTEGGI!I15=PARAMETRI!$G$29,0,IF(PUNTEGGI!I15>PARAMETRI!$G$24,5,IF(PUNTEGGI!I15>PARAMETRI!$G$25,4,IF(PUNTEGGI!I15>PARAMETRI!$G$26,3,IF(PUNTEGGI!I15>PARAMETRI!$G$27,2,IF(PUNTEGGI!I15>PARAMETRI!$G$28,2,1)))))))","v":0},0]
[10,{"$f":"'INSERIMENTO RISULTATI'!B16","v":0},{"$f":"'INSERIMENTO RISULTATI'!C16","v":0},"F",{"$f":"'INSERIMENTO RISULTATI'!E16","v":0},{"$f":"IF(PUNTEGGI!E16=\"\",\"\",IF(PUNTEGGI!E16=PARAMETRI!$G$11,0,IF(PUNTEGGI!E16>PARAMETRI!$G$6,5,IF(PUNTEGGI!E16>PARAMETRI!$G$7,4,IF(PUNTEGGI!E16>PARAMETRI!$G$8,3,IF(PUNTEGGI!E16>PARAMETRI!$G$9,2,IF(PUNTEGGI!E16>PARAMETRI!$G$10,2,1)))))))","v":0},{"$f":"'INSERIMENTO RISULTATI'!G16","v":0},{"$f":"IF(PUNTEGGI!G16=\"\",\"\",IF(PUNTEGGI!G16<PARAMETRI!$G$20,0,IF(PUNTEGGI!G16<PARAMETRI!$G$15,5,IF(PUNTEGGI!G16<PARAMETRI!$G$16,4,IF(PUNTEGGI!G16<PARAMETRI!$G$17,3,IF(PUNTEGGI!G16<PARAMETRI!$G$18,2,IF(PUNTEGGI!G16<PARAMETRI!$G$19,2,1)))))))","v":0},{"$f":"'INSERIMENTO RISULTATI'!I16","v":0},{"$f":"IF(PUNTEGGI!I16=\"\",\"\",IF(PUNTEGGI!I16=PARAMETRI!$G$29,0,IF(PUNTEGGI!I16>PARAMETRI!$G$24,5,IF(PUNTEGGI!I16>PARAMETRI!$G$25,4,IF(PUNTEGGI!I16>PARAMETRI!$G$26,3,IF(PUNTEGGI!I16>PARAMETRI!$G$27,2,IF(PUNTEGGI!I16>PARAMETRI!$G$28,2,1)))))))","v":0},0]
[11,{"$f":"'INSERIMENTO RISULTATI'!B17","v":0},{"$f":"'INSERIMENTO RISULTATI'!C17","v":0},"F",{"$f":"'INSERIMENTO RISULTATI'!E17","v":0},{"$f":"IF(PUNTEGGI!E17=\"\",\"\",IF(PUNTEGGI!E17=PARAMETRI!$G$11,0,IF(PUNTEGGI!E17>PARAMETRI!$G$6,5,IF(PUNTEGGI!E17>PARAMETRI!$G$7,4,IF(PUNTEGGI!E17>PARAMETRI!$G$8,3,IF(PUNTEGGI!E17>PARAMETRI!$G$9,2,IF(PUNTEGGI!E17>PARAMETRI!$G$10,2,1)))))))","v":0},{"$f":"'INSERIMENTO RISULTATI'!G17","v":0},{"$f":"IF(PUNTEGGI!G17=\"\",\"\",IF(PUNTEGGI!G17<PARAMETRI!$G$20,0,IF(PUNTEGGI!G17<PARAMETRI!$G$15,5,IF(PUNTEGGI!G17<PARAMETRI!$G$16,4,IF(PUNTEGGI!G17<PARAMETRI!$G$17,3,IF(PUNTEGGI!G17<PARAMETRI!$G$18,2,IF(PUNTEGGI!G17<PARAMETRI!$G$19,2,1)))))))","v":0},{"$f":"'INSERIMENTO RISULTATI'!I17","v":0},{"$f":"IF(PUNTEGGI!I17=\"\",\"\",IF(PUNTEGGI!I17=PARAMETRI!$G$29,0,IF(PUNTEGGI!I17>PARAMETRI!$G$24,5,IF(PUNTEGGI!I17>PARAMETRI!$G$25,4,IF(PUNTEGGI!I17>PARAMETRI!$G$26,3,IF(PUNTEGGI!I17>PARAMETRI!$G$27,2,IF(PUNTEGGI!I17>PARAMETRI!$G$28,2,1)))))))","v":0},0]
[12,{"$f":"'INSERIMENTO RISULTATI'!B18","v":0},{"$f":"'INSERIMENTO RISULTATI'!C18","v":0},"F",{"$f":"'INSERIMENTO RISULTATI'!E18","v":0},{"$f":"IF(PUNTEGGI!E18=\"\",\"\",IF(PUNTEGGI!E18=PARAMETRI!$G$11,0,IF(PUNTEGGI!E18>PARAMETRI!$G$6,5,IF(PUNTEGGI!E18>PARAMETRI!$G$7,4,IF(PUNTEGGI!E18>PARAMETRI!$G$8,3,IF(PUNTEGGI!E18>PARAMETRI!$G$9,2,IF(PUNTEGGI!E18>PARAMETRI!$G$10,2,1)))))))","v":0},{"$f":"'INSERIMENTO RISULTATI'!G18","v":0},{"$f":"IF(PUNTEGGI!G18=\"\",\"\",IF(PUNTEGGI!G18<PARAMETRI!$G$20,0,IF(PUNTEGGI!G18<PARAMETRI!$G$15,5,IF(PUNTEGGI!G18<PARAMETRI!$G$16,4,IF(PUNTEGGI!G18<PARAMETRI!$G$17,3,IF(PUNTEGGI!G18<PARAMETRI!$G$18,2,IF(PUNTEGGI!G18<PARAMETRI!$G$19,2,1)))))))","v":0},{"$f":"'INSERIMENTO RISULTATI'!I18","v":0},{"$f":"IF(PUNTEGGI!I18=\"\",\"\",IF(PUNTEGGI!I18=PARAMETRI!$G$29,0,IF(PUNTEGGI!I18>PARAMETRI!$G$24,5,IF(PUNTEGGI!I18>PARAMETRI!$G$25,4,IF(PUNTEGGI!I18>PARAMETRI!$G$26,3,IF(PUNTEGGI!I18>PARAMETRI!$G$27,2,IF(PUNTEGGI!I18>PARAMETRI!$G$28,2,1)))))))","v":0},0]
[13,{"$f":"'INSERIMENTO RISULTATI'!B19","v":0},{"$f":"'INSERIMENTO RISULTATI'!C19","v":0},"F",{"$f":"'INSERIMENTO RISULTATI'!E19","v":0},{"$f":"IF(PUNTEGGI!E19=\"\",\"\",IF(PUNTEGGI!E19=PARAMETRI!$G$11,0,IF(PUNTEGGI!E19>PARAMETRI!$G$6,5,IF(PUNTEGGI!E19>PARAMETRI!$G$7,4,IF(PUNTEGGI!E19>PARAMETRI!$G$8,3,IF(PUNTEGGI!E19>PARAMETRI!$G$9,2,IF(PUNTEGGI!E19>PARAMETRI!$G$10,2,1)))))))","v":0},{"$f":"'INSERIMENTO RISULTATI'!G19","v":0},{"$f":"IF(PUNTEGGI!G19=\"\",\"\",IF(PUNTEGGI!G19<PARAMETRI!$G$20,0,IF(PUNTEGGI!G19<PARAMETRI!$G$15,5,IF(PUNTEGGI!G19<PARAMETRI!$G$16,4,IF(PUNTEGGI!G19<PARAMETRI!$G$17,3,IF(PUNTEGGI!G19<PARAMETRI!$G$18,2,IF(PUNTEGGI!G19<PARAMETRI!$G$19,2,1)))))))","v":0},{"$f":"'INSERIMENTO RISULTATI'!I19","v":0},{"$f":"IF(PUNTEGGI!I19=\"\",\"\",IF(PUNTEGGI!I19=PARAMETRI!$G$29,0,IF(PUNTEGGI!I19>PARAMETRI!$G$24,5,IF(PUNTEGGI!I19>PARAMETRI!$G$25,4,IF(PUNTEGGI!I19>PARAMETRI!$G$26,3,IF(PUNTEGGI!I19>PARAMETRI!$G$27,2,IF(PUNTEGGI!I19>PARAMETRI!$G$28,2,1)))))))","v":0},0]
[14,{"$f":"'INSERIMENTO RISULTATI'!B20","v":0},{"$f":"'INSERIMENTO RISULTATI'!C20","v":0},"F",{"$f":"'INSERIMENTO RISULTATI'!E20","v":0},{"$f":"IF(PUNTEGGI!E20=\"\",\"\",IF(PUNTEGGI!E20=PARAMETRI!$G$11,0,IF(PUNTEGGI!E20>PARAMETRI!$G$6,5,IF(PUNTEGGI!E20>PARAMETRI!$G$7,4,IF(PUNTEGGI!E20>PARAMETRI!$G$8,3,IF(PUNTEGGI!E20>PARAMETRI!$G$9,2,IF(PUNTEGGI!E20>PARAMETRI!$G$10,2,1)))))))","v":0},{"$f":"'INSERIMENTO RISULTATI'!G20","v":0},{"$f":"IF(PUNTEGGI!G20=\"\",\"\",IF(PUNTEGGI!G20<PARAMETRI!$G$20,0,IF(PUNTEGGI!G20<PARAMETRI!$G$15,5,IF(PUNTEGGI!G20<PARAMETRI!$G$16,4,IF(PUNTEGGI!G20<PARAMETRI!$G$17,3,IF(PUNTEGGI!G20<PARAMETRI!$G$18,2,IF(PUNTEGGI!G20<PARAMETRI!$G$19,2,1)))))))","v":0},{"$f":"'INSERIMENTO RISULTATI'!I20","v":0},{"$f":"IF(PUNTEGGI!I20=\"\",\"\",IF(PUNTEGGI!I20=PARAMETRI!$G$29,0,IF(PUNTEGGI!I20>PARAMETRI!$G$24,5,IF(PUNTEGGI!I20>PARAMETRI!$G$25,4,IF(PUNTEGGI!I20>PARAMETRI!$G$26,3,IF(PUNTEGGI!I20>PARAMETRI!$G$27,2,IF(PUNTEGGI!I20>PARAMETRI!$G$28,2,1)))))))","v":0},0]
[15,{"$f":"'INSERIMENTO RISULTATI'!B21","v":0},{"$f":"'INSERIMENTO RISULTATI'!C21","v":0},"F",{"$f":"'INSERIMENTO RISULTATI'!E21","v":0},{"$f":"IF(PUNTEGGI!E21=\"\",\"\",IF(PUNTEGGI!E21=PARAMETRI!$G$11,0,IF(PUNTEGGI!E21>PARAMETRI!$G$6,5,IF(PUNTEGGI!E21>PARAMETRI!$G$7,4,IF(PUNTEGGI!E21>PARAMETRI!$G$8,3,IF(PUNTEGGI!E21>PARAMETRI!$G$9,2,IF(PUNTEGGI!E21>PARAMETRI!$G$10,2,1)))))))","v":0},{"$f":"'INSERIMENTO RISULTATI'!G21","v":0},{"$f":"IF(PUNTEGGI!G21=\"\",\"\",IF(PUNTEGGI!G21<PARAMETRI!$G$20,0,IF(PUNTEGGI!G21<PARAMETRI!$G$15,5,IF(PUNTEGGI!G21<PARAMETRI!$G$16,4,IF(PUNTEGGI!G21<PARAMETRI!$G$17,3,IF(PUNTEGGI!G21<PARAMETRI!$G$18,2,IF(PUNTEGGI!G21<PARAMETRI!$G$19,2,1)))))))","v":0},{"$f":"'INSERIMENTO RISULTATI'!I21","v":0},{"$f":"IF(PUNTEGGI!I21=\"\",\"\",IF(PUNTEGGI!I21=PARAMETRI!$G$29,0,IF(PUNTEGGI!I21>PARAMETRI!$G$24,5,IF(PUNTEGGI!I21>PARAMETRI!$G$25,4,IF(PUNTEGGI!I21>PARAMETRI!$G$26,3,IF(PUNTEGGI!I21>PARAMETRI!$G$27,2,IF(PUNTEGGI!I21>PARAMETRI!$G$28,2,1)))))))","v":0},0]
[16,{"$f":"'INSERIMENTO RISULTATI'!B22","v":0},{"$f":"'INSERIMENTO RISULTATI'!C22","v":0},"F",{"$f":"'INSERIMENTO RISULTATI'!E22","v":0},{"$f":"IF(PUNTEGGI!E22=\"\",\"\",IF(PUNTEGGI!E22=PARAMETRI!$G$11,0,IF(PUNTEGGI!E22>PARAMETRI!$G$6,5,IF(PUNTEGGI!E22>PARAMETRI!$G$7,4,IF(PUNTEGGI!E22>PARAMETRI!$G$8,3,IF(PUNTEGGI!E22>PARAMETRI!$G$9,2,IF(PUNTEGGI!E22>PARAMETRI!$G$10,2,1)))))))","v":0},{"$f":"'INSERIMENTO RISULTATI'!G22","v":0},{"$f":"IF(PUNTEGGI!G22=\"\",\"\",IF(PUNTEGGI!G22<PARAMETRI!$G$20,0,IF(PUNTEGGI!G22<PARAMETRI!$G$15,5,IF(PUNTEGGI!G22<PARAMETRI!$G$16,4,IF(PUNTEGGI!G22<PARAMETRI!$G$17,3,IF(PUNTEGGI!G22<PARAMETRI!$G$18,2,IF(PUNTEGGI!G22<PARAMETRI!$G$19,2,1)))))))","v":0},{"$f":"'INSERIMENTO RISULTATI'!I22","v":0},{"$f":"IF(PUNTEGGI!I22=\"\",\"\",IF(PUNTEGGI!I22=PARAMETRI!$G$29,0,IF(PUNTEGGI!I22>PARAMETRI!$G$24,5,IF(PUNTEGGI!I22>PARAMETRI!$G$25,4,IF(PUNTEGGI!I22>PARAMETRI!$G$26,3,IF(PUNTEGGI!I22>PARAMETRI!$G$27,2,IF(PUNTEGGI!I22>PARAMETRI!$G$28,2,1)))))))","v":0},0]
[17,{"$f":"'INSERIMENTO RISULTATI'!B23","v":0},{"$f":"'INSERIMENTO RISULTATI'!C23","v":0},"F",{"$f":"'INSERIMENTO RISULTATI'!E23","v":0},{"$f":"IF(PUNTEGGI!E23=\"\",\"\",IF(PUNTEGGI!E23=PARAMETRI!$G$11,0,IF(PUNTEGGI!E23>PARAMETRI!$G$6,5,IF(PUNTEGGI!E23>PARAMETRI!$G$7,4,IF(PUNTEGGI!E23>PARAMETRI!$G$8,3,IF(PUNTEGGI!E23>PARAMETRI!$G$9,2,IF(PUNTEGGI!E23>PARAMETRI!$G$10,2,1)))))))","v":0},{"$f":"'INSERIMENTO RISULTATI'!G23","v":0},{"$f":"IF(PUNTEGGI!G23=\"\",\"\",IF(PUNTEGGI!G23<PARAMETRI!$G$20,0,IF(PUNTEGGI!G23<PARAMETRI!$G$15,5,IF(PUNTEGGI!G23<PARAMETRI!$G$16,4,IF(PUNTEGGI!G23<PARAMETRI!$G$17,3,IF(PUNTEGGI!G23<PARAMETRI!$G$18,2,IF(PUNTEGGI!G23<PARAMETRI!$G$19,2,1)))))))","v":0},{"$f":"'INSERIMENTO RISULTATI'!I23","v":0},{"$f":"IF(PUNTEGGI!I23=\"\",\"\",IF(PUNTEGGI!I23=PARAMETRI!$G$29,0,IF(PUNTEGGI!I23>PARAMETRI!$G$24,5,IF(PUNTEGGI!I23>PARAMETRI!$G$25,4,IF(PUNTEGGI!I23>PARAMETRI!$G$26,3,IF(PUNTEGGI!I23>PARAMETRI!$G$27,2,IF(PUNTEGGI!I23>PARAMETRI!$G$28,2,1)))))))","v":0},0]
[18,{"$f":"'INSERIMENTO RISULTATI'!B24","v":0},{"$f":"'INSERIMENTO RISULTATI'!C24","v":0},"F",{"$f":"'INSERIMENTO RISULTATI'!E24","v":0},{"$f":"IF(PUNTEGGI!E24=\"\",\"\",IF(PUNTEGGI!E24=PARAMETRI!$G$11,0,IF(PUNTEGGI!E24>PARAMETRI!$G$6,5,IF(PUNTEGGI!E24>PARAMETRI!$G$7,4,IF(PUNTEGGI!E24>PARAMETRI!$G$8,3,IF(PUNTEGGI!E24>PARAMETRI!$G$9,2,IF(PUNTEGGI!E24>PARAMETRI!$G$10,2,1)))))))","v":0},{"$f":"'INSERIMENTO RISULTATI'!G24","v":0},{"$f":"IF(PUNTEGGI!G24=\"\",\"\",IF(PUNTEGGI!G24<PARAMETRI!$G$20,0,IF(PUNTEGGI!G24<PARAMETRI!$G$15,5,IF(PUNTEGGI!G24<PARAMETRI!$G$16,4,IF(PUNTEGGI!G24<PARAMETRI!$G$17,3,IF(PUNTEGGI!G24<PARAMETRI!$G$18,2,IF(PUNTEGGI!G24<PARAMETRI!$G$19,2,1)))))))","v":0},{"$f":"'INSERIMENTO RISULTATI'!I24","v":0},{"$f":"IF(PUNTEGGI!I24=\"\",\"\",IF(PUNTEGGI!I24=PARAMETRI!$G$29,0,IF(PUNTEGGI!I24>PARAMETRI!$G$24,5,IF(PUNTEGGI!I24>PARAMETRI!$G$25,4,IF(PUNTEGGI!I24>PARAMETRI!$G$26,3,IF(PUNTEGGI!I24>PARAMETRI!$G$27,2,IF(PUNTEGGI!I24>PARAMETRI!$G$28,2,1)))))))","v":0},0]
[19,{"$f":"'INSERIMENTO RISULTATI'!B25","v":0},{"$f":"'INSERIMENTO RISULTATI'!C25","v":0},"F",{"$f":"'INSERIMENTO RISULTATI'!E25","v":0},{"$f":"IF(PUNTEGGI!E25=\"\",\"\",IF(PUNTEGGI!E25=PARAMETRI!$G$11,0,IF(PUNTEGGI!E25>PARAMETRI!$G$6,5,IF(PUNTEGGI!E25>PARAMETRI!$G$7,4,IF(PUNTEGGI!E25>PARAMETRI!$G$8,3,IF(PUNTEGGI!E25>PARAMETRI!$G$9,2,IF(PUNTEGGI!E25>PARAMETRI!$G$10,2,1)))))))","v":0},{"$f":"'INSERIMENTO RISULTATI'!G25","v":0},{"$f":"IF(PUNTEGGI!G25=\"\",\"\",IF(PUNTEGGI!G25<PARAMETRI!$G$20,0,IF(PUNTEGGI!G25<PARAMETRI!$G$15,5,IF(PUNTEGGI!G25<PARAMETRI!$G$16,4,IF(PUNTEGGI!G25<PARAMETRI!$G$17,3,IF(PUNTEGGI!G25<PARAMETRI!$G$18,2,IF(PUNTEGGI!G25<PARAMETRI!$G$19,2,1)))))))","v":0},{"$f":"'INSERIMENTO RISULTATI'!I25","v":0},{"$f":"IF(PUNTEGGI!I25=\"\",\"\",IF(PUNTEGGI!I25=PARAMETRI!$G$29,0,IF(PUNTEGGI!I25>PARAMETRI!$G$24,5,IF(PUNTEGGI!I25>PARAMETRI!$G$25,4,IF(PUNTEGGI!I25>PARAMETRI!$G$26,3,IF(PUNTEGGI!I25>PARAMETRI!$G$27,2,IF(PUNTEGGI!I25>PARAMETRI!$G$28,2,1)))))))","v":0},0]
[20,{"$f":"'INSERIMENTO RISULTATI'!B26","v":0},{"$f":"'INSERIMENTO RISULTATI'!C26","v":0},"F",{"$f":"'INSERIMENTO RISULTATI'!E26","v":0},{"$f":"IF(PUNTEGGI!E26=\"\",\"\",IF(PUNTEGGI!E26=PARAMETRI!$G$11,0,IF(PUNTEGGI!E26>PARAMETRI!$G$6,5,IF(PUNTEGGI!E26>PARAMETRI!$G$7,4,IF(PUNTEGGI!E26>PARAMETRI!$G$8,3,IF(PUNTEGGI!E26>PARAMETRI!$G$9,2,IF(PUNTEGGI!E26>PARAMETRI!$G$10,2,1)))))))","v":0},{"$f":"'INSERIMENTO RISULTATI'!G26","v":0},{"$f":"IF(PUNTEGGI!G26=\"\",\"\",IF(PUNTEGGI!G26<PARAMETRI!$G$20,0,IF(PUNTEGGI!G26<PARAMETRI!$G$15,5,IF(PUNTEGGI!G26<PARAMETRI!$G$16,4,IF(PUNTEGGI!G26<PARAMETRI!$G$17,3,IF(PUNTEGGI!G26<PARAMETRI!$G$18,2,IF(PUNTEGGI!G26<PARAMETRI!$G$19,2,1)))))))","v":0},{"$f":"'INSERIMENTO RISULTATI'!I26","v":0},{"$f":"IF(PUNTEGGI!I26=\"\",\"\",IF(PUNTEGGI!I26=PARAMETRI!$G$29,0,IF(PUNTEGGI!I26>PARAMETRI!$G$24,5,IF(PUNTEGGI!I26>PARAMETRI!$G$25,4,IF(PUNTEGGI!I26>PARAMETRI!$G$26,3,IF(PUNTEGGI!I26>PARAMETRI!$G$27,2,IF(PUNTEGGI!I26>PARAMETRI!$G$28,2,1)))))))","v":0},0]
[21,{"$f":"'INSERIMENTO RISULTATI'!B27","v":0},{"$f":"'INSERIMENTO RISULTATI'!C27","v":0},"F",{"$f":"'INSERIMENTO RISULTATI'!E27","v":0},{"$f":"IF(PUNTEGGI!E27=\"\",\"\",IF(PUNTEGGI!E27=PARAMETRI!$G$11,0,IF(PUNTEGGI!E27>PARAMETRI!$G$6,5,IF(PUNTEGGI!E27>PARAMETRI!$G$7,4,IF(PUNTEGGI!E27>PARAMETRI!$G$8,3,IF(PUNTEGGI!E27>PARAMETRI!$G$9,2,IF(PUNTEGGI!E27>PARAMETRI!$G$10,2,1)))))))","v":0},{"$f":"'INSERIMENTO RISULTATI'!G27","v":0},{"$f":"IF(PUNTEGGI!G27=\"\",\"\",IF(PUNTEGGI!G27<PARAMETRI!$G$20,0,IF(PUNTEGGI!G27<PARAMETRI!$G$15,5,IF(PUNTEGGI!G27<PARAMETRI!$G$16,4,IF(PUNTEGGI!G27<PARAMETRI!$G$17,3,IF(PUNTEGGI!G27<PARAMETRI!$G$18,2,IF(PUNTEGGI!G27<PARAMETRI!$G$19,2,1)))))))","v":0},{"$f":"'INSERIMENTO RISULTATI'!I27","v":0},{"$f":"IF(PUNTEGGI!I27=\"\",\"\",IF(PUNTEGGI!I27=PARAMETRI!$G$29,0,IF(PUNTEGGI!I27>PARAMETRI!$G$24,5,IF(PUNTEGGI!I27>PARAMETRI!$G$25,4,IF(PUNTEGGI!I27>PARAMETRI!$G$26,3,IF(PUNTEGGI!I27>PARAMETRI!$G$27,2,IF(PUNTEGGI!I27>PARAMETRI!$G$28,2,1)))))))","v":0},0]
[22,{"$f":"'INSERIMENTO RISULTATI'!B28","v":0},{"$f":"'INSERIMENTO RISULTATI'!C28","v":0},"F",{"$f":"'INSERIMENTO RISULTATI'!E28","v":0},{"$f":"IF(PUNTEGGI!E28=\"\",\"\",IF(PUNTEGGI!E28=PARAMETRI!$G$11,0,IF(PUNTEGGI!E28>PARAMETRI!$G$6,5,IF(PUNTEGGI!E28>PARAMETRI!$G$7,4,IF(PUNTEGGI!E28>PARAMETRI!$G$8,3,IF(PUNTEGGI!E28>PARAMETRI!$G$9,2,IF(PUNTEGGI!E28>PARAMETRI!$G$10,2,1)))))))","v":0},{"$f":"'INSERIMENTO RISULTATI'!G28","v":0},{"$f":"IF(PUNTEGGI!G28=\"\",\"\",IF(PUNTEGGI!G28<PARAMETRI!$G$20,0,IF(PUNTEGGI!G28<PARAMETRI!$G$15,5,IF(PUNTEGGI!G28<PARAMETRI!$G$16,4,IF(PUNTEGGI!G28<PARAMETRI!$G$17,3,IF(PUNTEGGI!G28<PARAMETRI!$G$18,2,IF(PUNTEGGI!G28<PARAMETRI!$G$19,2,1)))))))","v":0},{"$f":"'INSERIMENTO RISULTATI'!I28","v":0},{"$f":"IF(PUNTEGGI!I28=\"\",\"\",IF(PUNTEGGI!I28=PARAMETRI!$G$29,0,IF(PUNTEGGI!I28>PARAMETRI!$G$24,5,IF(PUNTEGGI!I28>PARAMETRI!$G$25,4,IF(PUNTEGGI!I28>PARAMETRI!$G$26,3,IF(PUNTEGGI!I28>PARAMETRI!$G$27,2,IF(PUNTEGGI!I28>PARAMETRI!$G$28,2,1)))))))","v":0},0]
[23,{"$f":"'INSERIMENTO RISULTATI'!B29","v":0},{"$f":"'INSERIMENTO RISULTATI'!C29","v":0},"F",{"$f":"'INSERIMENTO RISULTATI'!E29","v":0},{"$f":"IF(PUNTEGGI!E29=\"\",\"\",IF(PUNTEGGI!E29=PARAMETRI!$G$11,0,IF(PUNTEGGI!E29>PARAMETRI!$G$6,5,IF(PUNTEGGI!E29>PARAMETRI!$G$7,4,IF(PUNTEGGI!E29>PARAMETRI!$G$8,3,IF(PUNTEGGI!E29>PARAMETRI!$G$9,2,IF(PUNTEGGI!E29>PARAMETRI!$G$10,2,1)))))))","v":0},{"$f":"'INSERIMENTO RISULTATI'!G29","v":0},{"$f":"IF(PUNTEGGI!G29=\"\",\"\",IF(PUNTEGGI!G29<PARAMETRI!$G$20,0,IF(PUNTEGGI!G29<PARAMETRI!$G$15,5,IF(PUNTEGGI!G29<PARAMETRI!$G$16,4,IF(PUNTEGGI!G29<PARAMETRI!$G$17,3,IF(PUNTEGGI!G29<PARAMETRI!$G$18,2,IF(PUNTEGGI!G29<PARAMETRI!$G$19,2,1)))))))","v":0},{"$f":"'INSERIMENTO RISULTATI'!I29","v":0},{"$f":"IF(PUNTEGGI!I29=\"\",\"\",IF(PUNTEGGI!I29=PARAMETRI!$G$29,0,IF(PUNTEGGI!I29>PARAMETRI!$G$24,5,IF(PUNTEGGI!I29>PARAMETRI!$G$25,4,IF(PUNTEGGI!I29>PARAMETRI!$G$26,3,IF(PUNTEGGI!I29>PARAMETRI!$G$27,2,IF(PUNTEGGI!I29>PARAMETRI!$G$28,2,1)))))))","v":0},0]
[24,{"$f":"'INSERIMENTO RISULTATI'!B30","v":0},{"$f":"'INSERIMENTO RISULTATI'!C30","v":0},"F",{"$f":"'INSERIMENTO RISULTATI'!E30","v":0},{"$f":"IF(PUNTEGGI!E30=\"\",\"\",IF(PUNTEGGI!E30=PARAMETRI!$G$11,0,IF(PUNTEGGI!E30>PARAMETRI!$G$6,5,IF(PUNTEGGI!E30>PARAMETRI!$G$7,4,IF(PUNTEGGI!E30>PARAMETRI!$G$8,3,IF(PUNTEGGI!E30>PARAMETRI!$G$9,2,IF(PUNTEGGI!E30>PARAMETRI!$G$10,2,1)))))))","v":0},{"$f":"'INSERIMENTO RISULTATI'!G30","v":0},{"$f":"IF(PUNTEGGI!G30=\"\",\"\",IF(PUNTEGGI!G30<PARAMETRI!$G$20,0,IF(PUNTEGGI!G30<PARAMETRI!$G$15,5,IF(PUNTEGGI!G30<PARAMETRI!$G$16,4,IF(PUNTEGGI!G30<PARAMETRI!$G$17,3,IF(PUNTEGGI!G30<PARAMETRI!$G$18,2,IF(PUNTEGGI!G30<PARAMETRI!$G$19,2,1)))))))","v":0},{"$f":"'INSERIMENTO RISULTATI'!I30","v":0},{"$f":"IF(PUNTEGGI!I30=\"\",\"\",IF(PUNTEGGI!I30=PARAMETRI!$G$29,0,IF(PUNTEGGI!I30>PARAMETRI!$G$24,5,IF(PUNTEGGI!I30>PARAMETRI!$G$25,4,IF(PUNTEGGI!I30>PARAMETRI!$G$26,3,IF(PUNTEGGI!I30>PARAMETRI!$G$27,2,IF(PUNTEGGI!I30>PARAMETRI!$G$28,2,1)))))))","v":0},0]
[25,{"$f":"'INSERIMENTO RISULTATI'!B31","v":0},{"$f":"'INSERIMENTO RISULTATI'!C31","v":0},"F",{"$f":"'INSERIMENTO RISULTATI'!E31","v":0},{"$f":"IF(PUNTEGGI!E31=\"\",\"\",IF(PUNTEGGI!E31=PARAMETRI!$G$11,0,IF(PUNTEGGI!E31>PARAMETRI!$G$6,5,IF(PUNTEGGI!E31>PARAMETRI!$G$7,4,IF(PUNTEGGI!E31>PARAMETRI!$G$8,3,IF(PUNTEGGI!E31>PARAMETRI!$G$9,2,IF(PUNTEGGI!E31>PARAMETRI!$G$10,2,1)))))))","v":0},{"$f":"'INSERIMENTO RISULTATI'!G31","v":0},{"$f":"IF(PUNTEGGI!G31=\"\",\"\",IF(PUNTEGGI!G31<PARAMETRI!$G$20,0,IF(PUNTEGGI!G31<PARAMETRI!$G$15,5,IF(PUNTEGGI!G31<PARAMETRI!$G$16,4,IF(PUNTEGGI!G31<PARAMETRI!$G$17,3,IF(PUNTEGGI!G31<PARAMETRI!$G$18,2,IF(PUNTEGGI!G31<PARAMETRI!$G$19,2,1)))))))","v":0},{"$f":"'INSERIMENTO RISULTATI'!I31","v":0},{"$f":"IF(PUNTEGGI!I31=\"\",\"\",IF(PUNTEGGI!I31=PARAMETRI!$G$29,0,IF(PUNTEGGI!I31>PARAMETRI!$G$24,5,IF(PUNTEGGI!I31>PARAMETRI!$G$25,4,IF(PUNTEGGI!I31>PARAMETRI!$G$26,3,IF(PUNTEGGI!I31>PARAMETRI!$G$27,2,IF(PUNTEGGI!I31>PARAMETRI!$G$28,2,1)))))))","v":0},0]
[26,{"$f":"'INSERIMENTO RISULTATI'!B32","v":0},{"$f":"'INSERIMENTO RISULTATI'!C32","v":0},"F",{"$f":"'INSERIMENTO RISULTATI'!E32","v":0},{"$f":"IF(PUNTEGGI!E32=\"\",\"\",IF(PUNTEGGI!E32=PARAMETRI!$G$11,0,IF(PUNTEGGI!E32>PARAMETRI!$G$6,5,IF(PUNTEGGI!E32>PARAMETRI!$G$7,4,IF(PUNTEGGI!E32>PARAMETRI!$G$8,3,IF(PUNTEGGI!E32>PARAMETRI!$G$9,2,IF(PUNTEGGI!E32>PARAMETRI!$G$10,2,1)))))))","v":0},{"$f":"'INSERIMENTO RISULTATI'!G32","v":0},{"$f":"IF(PUNTEGGI!G32=\"\",\"\",IF(PUNTEGGI!G32<PARAMETRI!$G$20,0,IF(PUNTEGGI!G32<PARAMETRI!$G$15,5,IF(PUNTEGGI!G32<PARAMETRI!$G$16,4,IF(PUNTEGGI!G32<PARAMETRI!$G$17,3,IF(PUNTEGGI!G32<PARAMETRI!$G$18,2,IF(PUNTEGGI!G32<PARAMETRI!$G$19,2,1)))))))","v":0},{"$f":"'INSERIMENTO RISULTATI'!I32","v":0},{"$f":"IF(PUNTEGGI!I32=\"\",\"\",IF(PUNTEGGI!I32=PARAMETRI!$G$29,0,IF(PUNTEGGI!I32>PARAMETRI!$G$24,5,IF(PUNTEGGI!I32>PARAMETRI!$G$25,4,IF(PUNTEGGI!I32>PARAMETRI!$G$26,3,IF(PUNTEGGI!I32>PARAMETRI!$G$27,2,IF(PUNTEGGI!I32>PARAMETRI!$G$28,2,1)))))))","v":0},0]
[27,{"$f":"'INSERIMENTO RISULTATI'!B33","v":0},{"$f":"'INSERIMENTO RISULTATI'!C33","v":0},"F",{"$f":"'INSERIMENTO RISULTATI'!E33","v":0},{"$f":"IF(PUNTEGGI!E33=\"\",\"\",IF(PUNTEGGI!E33=PARAMETRI!$G$11,0,IF(PUNTEGGI!E33>PARAMETRI!$G$6,5,IF(PUNTEGGI!E33>PARAMETRI!$G$7,4,IF(PUNTEGGI!E33>PARAMETRI!$G$8,3,IF(PUNTEGGI!E33>PARAMETRI!$G$9,2,IF(PUNTEGGI!E33>PARAMETRI!$G$10,2,1)))))))","v":0},{"$f":"'INSERIMENTO RISULTATI'!G33","v":0},{"$f":"IF(PUNTEGGI!G33=\"\",\"\",IF(PUNTEGGI!G33<PARAMETRI!$G$20,0,IF(PUNTEGGI!G33<PARAMETRI!$G$15,5,IF(PUNTEGGI!G33<PARAMETRI!$G$16,4,IF(PUNTEGGI!G33<PARAMETRI!$G$17,3,IF(PUNTEGGI!G33<PARAMETRI!$G$18,2,IF(PUNTEGGI!G33<PARAMETRI!$G$19,2,1)))))))","v":0},{"$f":"'INSERIMENTO RISULTATI'!I33","v":0},{"$f":"IF(PUNTEGGI!I33=\"\",\"\",IF(PUNTEGGI!I33=PARAMETRI!$G$29,0,IF(PUNTEGGI!I33>PARAMETRI!$G$24,5,IF(PUNTEGGI!I33>PARAMETRI!$G$25,4,IF(PUNTEGGI!I33>PARAMETRI!$G$26,3,IF(PUNTEGGI!I33>PARAMETRI!$G$27,2,IF(PUNTEGGI!I33>PARAMETRI!$G$28,2,1)))))))","v":0},0]
[28,{"$f":"'INSERIMENTO RISULTATI'!B34","v":0},{"$f":"'INSERIMENTO RISULTATI'!C34","v":0},"F",{"$f":"'INSERIMENTO RISULTATI'!E34","v":0},{"$f":"IF(PUNTEGGI!E34=\"\",\"\",IF(PUNTEGGI!E34=PARAMETRI!$G$11,0,IF(PUNTEGGI!E34>PARAMETRI!$G$6,5,IF(PUNTEGGI!E34>PARAMETRI!$G$7,4,IF(PUNTEGGI!E34>PARAMETRI!$G$8,3,IF(PUNTEGGI!E34>PARAMETRI!$G$9,2,IF(PUNTEGGI!E34>PARAMETRI!$G$10,2,1)))))))","v":0},{"$f":"'INSERIMENTO RISULTATI'!G34","v":0},{"$f":"IF(PUNTEGGI!G34=\"\",\"\",IF(PUNTEGGI!G34<PARAMETRI!$G$20,0,IF(PUNTEGGI!G34<PARAMETRI!$G$15,5,IF(PUNTEGGI!G34<PARAMETRI!$G$16,4,IF(PUNTEGGI!G34<PARAMETRI!$G$17,3,IF(PUNTEGGI!G34<PARAMETRI!$G$18,2,IF(PUNTEGGI!G34<PARAMETRI!$G$19,2,1)))))))","v":0},{"$f":"'INSERIMENTO RISULTATI'!I34","v":0},{"$f":"IF(PUNTEGGI!I34=\"\",\"\",IF(PUNTEGGI!I34=PARAMETRI!$G$29,0,IF(PUNTEGGI!I34>PARAMETRI!$G$24,5,IF(PUNTEGGI!I34>PARAMETRI!$G$25,4,IF(PUNTEGGI!I34>PARAMETRI!$G$26,3,IF(PUNTEGGI!I34>PARAMETRI!$G$27,2,IF(PUNTEGGI!I34>PARAMETRI!$G$28,2,1)))))))","v":0},0]
[29,{"$f":"'INSERIMENTO RISULTATI'!B35","v":0},{"$f":"'INSERIMENTO RISULTATI'!C35","v":0},"F",{"$f":"'INSERIMENTO RISULTATI'!E35","v":0},{"$f":"IF(PUNTEGGI!E35=\"\",\"\",IF(PUNTEGGI!E35=PARAMETRI!$G$11,0,IF(PUNTEGGI!E35>PARAMETRI!$G$6,5,IF(PUNTEGGI!E35>PARAMETRI!$G$7,4,IF(PUNTEGGI!E35>PARAMETRI!$G$8,3,IF(PUNTEGGI!E35>PARAMETRI!$G$9,2,IF(PUNTEGGI!E35>PARAMETRI!$G$10,2,1)))))))","v":0},{"$f":"'INSERIMENTO RISULTATI'!G35","v":0},{"$f":"IF(PUNTEGGI!G35=\"\",\"\",IF(PUNTEGGI!G35<PARAMETRI!$G$20,0,IF(PUNTEGGI!G35<PARAMETRI!$G$15,5,IF(PUNTEGGI!G35<PARAMETRI!$G$16,4,IF(PUNTEGGI!G35<PARAMETRI!$G$17,3,IF(PUNTEGGI!G35<PARAMETRI!$G$18,2,IF(PUNTEGGI!G35<PARAMETRI!$G$19,2,1)))))))","v":0},{"$f":"'INSERIMENTO RISULTATI'!I35","v":0},{"$f":"IF(PUNTEGGI!I35=\"\",\"\",IF(PUNTEGGI!I35=PARAMETRI!$G$29,0,IF(PUNTEGGI!I35>PARAMETRI!$G$24,5,IF(PUNTEGGI!I35>PARAMETRI!$G$25,4,IF(PUNTEGGI!I35>PARAMETRI!$G$26,3,IF(PUNTEGGI!I35>PARAMETRI!$G$27,2,IF(PUNTEGGI!I35>PARAMETRI!$G$28,2,1)))))))","v":0},0]
[30,{"$f":"'INSERIMENTO RISULTATI'!B36","v":0},{"$f":"'INSERIMENTO RISULTATI'!C36","v":0},"F",{"$f":"'INSERIMENTO RISULTATI'!E36","v":0},{"$f":"IF(PUNTEGGI!E36=\"\",\"\",IF(PUNTEGGI!E36=PARAMETRI!$G$11,0,IF(PUNTEGGI!E36>PARAMETRI!$G$6,5,IF(PUNTEGGI!E36>PARAMETRI!$G$7,4,IF(PUNTEGGI!E36>PARAMETRI!$G$8,3,IF(PUNTEGGI!E36>PARAMETRI!$G$9,2,IF(PUNTEGGI!E36>PARAMETRI!$G$10,2,1)))))))","v":0},{"$f":"'INSERIMENTO RISULTATI'!G36","v":0},{"$f":"IF(PUNTEGGI!G36=\"\",\"\",IF(PUNTEGGI!G36<PARAMETRI!$G$20,0,IF(PUNTEGGI!G36<PARAMETRI!$G$15,5,IF(PUNTEGGI!G36<PARAMETRI!$G$16,4,IF(PUNTEGGI!G36<PARAMETRI!$G$17,3,IF(PUNTEGGI!G36<PARAMETRI!$G$18,2,IF(PUNTEGGI!G36<PARAMETRI!$G$19,2,1)))))))","v":0},{"$f":"'INSERIMENTO RISULTATI'!I36","v":0},{"$f":"IF(PUNTEGGI!I36=\"\",\"\",IF(PUNTEGGI!I36=PARAMETRI!$G$29,0,IF(PUNTEGGI!I36>PARAMETRI!$G$24,5,IF(PUNTEGGI!I36>PARAMETRI!$G$25,4,IF(PUNTEGGI!I36>PARAMETRI!$G$26,3,IF(PUNTEGGI!I36>PARAMETRI!$G$27,2,IF(PUNTEGGI!I36>PARAMETRI!$G$28,2,1)))))))","v":0},0]
[]
[null,null,null,null,null,null,null,null,"INSERIMENTO RISULTATI"]
[null,"STAFFETTA (10 X 150 M A NAVETTA)",null,null,null,null,null,null,null,null,"REGOLAMENTO"]
["superiori",{"$f":"B1","v":0},null,{"$f":"D1","v":0},null,null,null,null,null,null,"CLASSIFICA"]
["N.","COGNOME","NOME","SESSO (F)","TEMPO"]
[1,{"$f":"'INSERIMENTO RISULTATI'!B41","v":0},{"$f":"'INSERIMENTO RISULTATI'!C41","v":0},"F",{"$f":"'INSERIMENTO RISULTATI'!E41","v":0}]
[2,{"$f":"'INSERIMENTO RISULTATI'!B42","v":0},{"$f":"'INSERIMENTO RISULTATI'!C42","v":0},"F"]
[3,{"$f":"'INSERIMENTO RISULTATI'!B43","v":0},{"$f":"'INSERIMENTO RISULTATI'!C43","v":0},"F"]
[4,{"$f":"'INSERIMENTO RISULTATI'!B44","v":0},{"$f":"'INSERIMENTO RISULTATI'!C44","v":0},"F"]
[5,{"$f":"'INSERIMENTO RISULTATI'!B45","v":0},{"$f":"'INSERIMENTO RISULTATI'!C45","v":0},"F"]
[6,{"$f":"'INSERIMENTO RISULTATI'!B46","v":0},{"$f":"'INSERIMENTO RISULTATI'!C46","v":0},"F"]
[7,{"$f":"'INSERIMENTO RISULTATI'!B47","v":0},{"$f":"'INSERIMENTO RISULTATI'!C47","v":0},"F"]
[8,{"$f":"'INSERIMENTO RISULTATI'!B48","v":0},{"$f":"'INSERIMENTO RISULTATI'!C48","v":0},"F"]
[9,{"$f":"'INSERIMENTO RISULTATI'!B49","v":0},{"$f":"'INSERIMENTO RISULTATI'!C49","v":0},"F"]
[10,{"$f":"'INSERIMENTO RISULTATI'!B50","v":0},{"$f":"'INSERIMENTO RISULTATI'!C50","v":0},"F"]
[null,null,null,null,null,null,null,null,"INSERIMENTO RISULTATI"]
[null,"PUNTEGGI PROVE",null,null,null,null,null,null,null,null,"REGOLAMENTO"]
[null,null,null,null,null,null,null,null,null,null,"CLASSIFICA"]

{"sheet":"CLASSIFICA","index":2,"n_rows":53,"n_cols":12,"rows_kept":53,"cut":false,"hidden":false,"merged":[[36,8,36,10],[0,6,0,7],[1,8,1,10],[2,1,2,9],[4,0,5,0],[4,1,5,1],[4,2,5,2],[4,3,5,3],[4,4,4,5],[4,6,4,7],[4,8,4,9],[52,1,52,5],[37,8,37,10],[38,1,38,4],[39,3,39,4],[51,8,51,10]]}
["classe:",{"$f":"'INSERIMENTO RISULTATI'!B1","v":0},"Istituto:",{"$f":"'INSERIMENTO RISULTATI'!D1","v":0},null,"docente:",{"$f":"'INSERIMENTO RISULTATI'!G1","v":0}]
[null,null,null,null,null,null,null,null,"INSERIMENTO RISULTATI"]
["superiori","multiPROVE: (FUNICELLA - ESAGONO - LANCIO SEDUTI)",null,null,null,null,null,null,null,null,"REGOLAMENTO"]
[]
["N.","COGNOME","NOME","SESSO (F)","FUNICELLA",null,"ESAGONO",null,"LANCIO",null,"GENERALE"]
[null,null,null,null,"MISURA","PUNTI","TEMPO","PUNTI","MISURA","PUNTI","TOT. PUNTI"]
[1,{"$f":"'INSERIMENTO RISULTATI'!B10","v":0},{"$f":"'INSERIMENTO RISULTATI'!C10","v":0},"F",{"$f":"'INSERIMENTO RISULTATI'!E10","v":0},{"$f":"PUNTEGGI!F10","v":0},{"$f":"'INSERIMENTO RISULTATI'!G10","v":0},{"$f":"PUNTEGGI!H10","v":0},{"$f":"'INSERIMENTO RISULTATI'!I10","v":0},{"$f":"PUNTEGGI!J10","v":0},{"$f":"SUM(F7,H7,J7)","v":0},{"$f":"K7","v":0}]
[2,{"$f":"'INSERIMENTO RISULTATI'!B12","v":0},{"$f":"'INSERIMENTO RISULTATI'!C12","v":0},"F",{"$f":"'INSERIMENTO RISULTATI'!E12","v":0},{"$f":"PUNTEGGI!F12","v":0},{"$f":"'INSERIMENTO RISULTATI'!G12","v":0},{"$f":"PUNTEGGI!H12","v":0},{"$f":"'INSERIMENTO RISULTATI'!I12","v":0},{"$f":"PUNTEGGI!J12","v":0},0,0]
[3,{"$f":"'INSERIMENTO RISULTATI'!B8","v":0},{"$f":"'INSERIMENTO RISULTATI'!C8","v":0},"F",{"$f":"'INSERIMENTO RISULTATI'!E8","v":0},{"$f":"PUNTEGGI!F8","v":0},{"$f":"'INSERIMENTO RISULTATI'!G8","v":0},{"$f":"PUNTEGGI!H8","v":0},{"$f":"'INSERIMENTO RISULTATI'!I8","v":0},{"$f":"PUNTEGGI!J8","v":0},0,0]
[4,{"$f":"'INSERIMENTO RISULTATI'!B7","v":0},{"$f":"'INSERIMENTO RISULTATI'!C7","v":0},"F",{"$f":"'INSERIMENTO RISULTATI'!E7","v":0},{"$f":"PUNTEGGI!F7","v":0},{"$f":"'INSERIMENTO RISULTATI'!G7","v":0},{"$f":"PUNTEGGI!H7","v":0},{"$f":"'INSERIMENTO RISULTATI'!I7","v":0},{"$f":"PUNTEGGI!J7","v":0},0,0]
[5,{"$f":"'INSERIMENTO RISULTATI'!B11","v":0},{"$f":"'INSERIMENTO RISULTATI'!C11","v":0},"F",{"$f":"'INSERIMENTO RISULTATI'!E11","v":0},{"$f":"PUNTEGGI!F11","v":0},{"$f":"'INSERIMENTO RISULTATI'!G11","v":0},{"$f":"PUNTEGGI!H11","v":0},{"$f":"'INSERIMENTO RISULTATI'!I11","v":0},{"$f":"PUNTEGGI!J11","v":0},0,0]
[6,{"$f":"'INSERIMENTO RISULTATI'!B14","v":0},{"$f":"'INSERIMENTO RISULTATI'!C14","v":0},"F",{"$f":"'INSERIMENTO RISULTATI'!E14","v":0},{"$f":"PUNTEGGI!F14","v":0},{"$f":"'INSERIMENTO RISULTATI'!G14","v":0},{"$f":"PUNTEGGI!H14","v":0},{"$f":"'INSERIMENTO RISULTATI'!I14","v":0},{"$f":"PUNTEGGI!J14","v":0},0,0]
[7,{"$f":"'INSERIMENTO RISULTATI'!B15","v":0},{"$f":"'INSERIMENTO RISULTATI'!C15","v":0},"F",{"$f":"'INSERIMENTO RISULTATI'!E15","v":0},{"$f":"PUNTEGGI!F15","v":0},{"$f":"'INSERIMENTO RISULTATI'!G15","v":0},{"$f":"PUNTEGGI!H15","v":0},{"$f":"'INSERIMENTO RISULTATI'!I15","v":0},{"$f":"PUNTEGGI!J15","v":0},0,0]
[8,{"$f":"'INSERIMENTO RISULTATI'!B9","v":0},{"$f":"'INSERIMENTO RISULTATI'!C9","v":0},"F",{"$f":"'INSERIMENTO RISULTATI'!E9","v":0},{"$f":"PUNTEGGI!F9","v":0},{"$f":"'INSERIMENTO RISULTATI'!G9","v":0},{"$f":"PUNTEGGI!H9","v":0},{"$f":"'INSERIMENTO RISULTATI'!I9","v":0},{"$f":"PUNTEGGI!J9","v":0},0,0]
[9,{"$f":"'INSERIMENTO RISULTATI'!B13","v":0},{"$f":"'INSERIMENTO RISULTATI'!C13","v":0},"F",{"$f":"'INSERIMENTO RISULTATI'!E13","v":0},{"$f":"PUNTEGGI!F13","v":0},{"$f":"'INSERIMENTO RISULTATI'!G13","v":0},{"$f":"PUNTEGGI!H13","v":0},{"$f":"'INSERIMENTO RISULTATI'!I13","v":0},{"$f":"PUNTEGGI!J13","v":0},0,0]
[10,{"$f":"'INSERIMENTO RISULTATI'!B17","v":0},{"$f":"'INSERIMENTO RISULTATI'!C17","v":0},"F",{"$f":"'INSERIMENTO RISULTATI'!E17","v":0},{"$f":"PUNTEGGI!F17","v":0},{"$f":"'INSERIMENTO RISULTATI'!G17","v":0},{"$f":"PUNTEGGI!H17","v":0},{"$f":"'INSERIMENTO RISULTATI'!I17","v":0},{"$f":"PUNTEGGI!J17","v":0},0,0]
[11,{"$f":"'INSERIMENTO RISULTATI'!B16","v":0},{"$f":"'INSERIMENTO RISULTATI'!C16","v":0},"F",{"$f":"'INSERIMENTO RISULTATI'!E16","v":0},{"$f":"PUNTEGGI!F16","v":0},{"$f":"'INSERIMENTO RISULTATI'!G16","v":0},{"$f":"PUNTEGGI!H16","v":0},{"$f":"'INSERIMENTO RISULTATI'!I16","v":0},{"$f":"PUNTEGGI!J16","v":0},0,0]
[12,{"$f":"'INSERIMENTO RISULTATI'!B36","v":0},{"$f":"'INSERIMENTO RISULTATI'!C36","v":0},"F",{"$f":"'INSERIMENTO RISULTATI'!E36","v":0},{"$f":"PUNTEGGI!F36","v":0},{"$f":"'INSERIMENTO RISULTATI'!G36","v":0},{"$f":"PUNTEGGI!H36","v":0},{"$f":"'INSERIMENTO RISULTATI'!I36","v":0},{"$f":"PUNTEGGI!J36","v":0},0,0]
[13,{"$f":"'INSERIMENTO RISULTATI'!B18","v":0},{"$f":"'INSERIMENTO RISULTATI'!C18","v":0},"F",{"$f":"'INSERIMENTO RISULTATI'!E18","v":0},{"$f":"PUNTEGGI!F18","v":0},{"$f":"'INSERIMENTO RISULTATI'!G18","v":0},{"$f":"PUNTEGGI!H18","v":0},{"$f":"'INSERIMENTO RISULTATI'!I18","v":0},{"$f":"PUNTEGGI!J18","v":0},0,0]
[14,{"$f":"'INSERIMENTO RISULTATI'!B19","v":0},{"$f":"'INSERIMENTO RISULTATI'!C19","v":0},"F",{"$f":"'INSERIMENTO RISULTATI'!E19","v":0},{"$f":"PUNTEGGI!F19","v":0},{"$f":"'INSERIMENTO RISULTATI'!G19","v":0},{"$f":"PUNTEGGI!H19","v":0},{"$f":"'INSERIMENTO RISULTATI'!I19","v":0},{"$f":"PUNTEGGI!J19","v":0},0,0]
[15,{"$f":"'INSERIMENTO RISULTATI'!B20","v":0},{"$f":"'INSERIMENTO RISULTATI'!C20","v":0},"F",{"$f":"'INSERIMENTO RISULTATI'!E20","v":0},{"$f":"PUNTEGGI!F20","v":0},{"$f":"'INSERIMENTO RISULTATI'!G20","v":0},{"$f":"PUNTEGGI!H20","v":0},{"$f":"'INSERIMENTO RISULTATI'!I20","v":0},{"$f":"PUNTEGGI!J20","v":0},0,0]
[16,{"$f":"'INSERIMENTO RISULTATI'!B21","v":0},{"$f":"'INSERIMENTO RISULTATI'!C21","v":0},"F",{"$f":"'INSERIMENTO RISULTATI'!E21","v":0},{"$f":"PUNTEGGI!F21","v":0},{"$f":"'INSERIMENTO RISULTATI'!G21","v":0},{"$f":"PUNTEGGI!H21","v":0},{"$f":"'INSERIMENTO RISULTATI'!I21","v":0},{"$f":"PUNTEGGI!J21","v":0},0,0]
[17,{"$f":"'INSERIMENTO RISULTATI'!B22","v":0},{"$f":"'INSERIMENTO RISULTATI'!C22","v":0},"F",{"$f":"'INSERIMENTO RISULTATI'!E22","v":0},{"$f":"PUNTEGGI!F22","v":0},{"$f":"'INSERIMENTO RISULTATI'!G22","v":0},{"$f":"PUNTEGGI!H22","v":0},{"$f":"'INSERIMENTO RISULTATI'!I22","v":0},{"$f":"PUNTEGGI!J22","v":0},0,0]
[18,{"$f":"'INSERIMENTO RISULTATI'!B23","v":0},{"$f":"'INSERIMENTO RISULTATI'!C23","v":0},"F",{"$f":"'INSERIMENTO RISULTATI'!E23","v":0},{"$f":"PUNTEGGI!F23","v":0},{"$f":"'INSERIMENTO RISULTATI'!G23","v":0},{"$f":"PUNTEGGI!H23","v":0},{"$f":"'INSERIMENTO RISULTATI'!I23","v":0},{"$f":"PUNTEGGI!J23","v":0},0,0]
[19,{"$f":"'INSERIMENTO RISULTATI'!B24","v":0},{"$f":"'INSERIMENTO RISULTATI'!C24","v":0},"F",{"$f":"'INSERIMENTO RISULTATI'!E24","v":0},{"$f":"PUNTEGGI!F24","v":0},{"$f":"'INSERIMENTO RISULTATI'!G24","v":0},{"$f":"PUNTEGGI!H24","v":0},{"$f":"'INSERIMENTO RISULTATI'!I24","v":0},{"$f":"PUNTEGGI!J24","v":0},0,0]
[20,{"$f":"'INSERIMENTO RISULTATI'!B25","v":0},{"$f":"'INSERIMENTO RISULTATI'!C25","v":0},"F",{"$f":"'INSERIMENTO RISULTATI'!E25","v":0},{"$f":"PUNTEGGI!F25","v":0},{"$f":"'INSERIMENTO RISULTATI'!G25","v":0},{"$f":"PUNTEGGI!H25","v":0},{"$f":"'INSERIMENTO RISULTATI'!I25","v":0},{"$f":"PUNTEGGI!J25","v":0},0,0]
[21,{"$f":"'INSERIMENTO RISULTATI'!B26","v":0},{"$f":"'INSERIMENTO RISULTATI'!C26","v":0},"F",{"$f":"'INSERIMENTO RISULTATI'!E26","v":0},{"$f":"PUNTEGGI!F26","v":0},{"$f":"'INSERIMENTO RISULTATI'!G26","v":0},{"$f":"PUNTEGGI!H26","v":0},{"$f":"'INSERIMENTO RISULTATI'!I26","v":0},{"$f":"PUNTEGGI!J26","v":0},0,0]
[22,{"$f":"'INSERIMENTO RISULTATI'!B27","v":0},{"$f":"'INSERIMENTO RISULTATI'!C27","v":0},"F",{"$f":"'INSERIMENTO RISULTATI'!E27","v":0},{"$f":"PUNTEGGI!F27","v":0},{"$f":"'INSERIMENTO RISULTATI'!G27","v":0},{"$f":"PUNTEGGI!H27","v":0},{"$f":"'INSERIMENTO RISULTATI'!I27","v":0},{"$f":"PUNTEGGI!J27","v":0},0,0]
[23,{"$f":"'INSERIMENTO RISULTATI'!B28","v":0},{"$f":"'INSERIMENTO RISULTATI'!C28","v":0},"F",{"$f":"'INSERIMENTO RISULTATI'!E28","v":0},{"$f":"PUNTEGGI!F28","v":0},{"$f":"'INSERIMENTO RISULTATI'!G28","v":0},{"$f":"PUNTEGGI!H28","v":0},{"$f":"'INSERIMENTO RISULTATI'!I28","v":0},{"$f":"PUNTEGGI!J28","v":0},0,0]
[24,{"$f":"'INSERIMENTO RISULTATI'!B29","v":0},{"$f":"'INSERIMENTO RISULTATI'!C29","v":0},"F",{"$f":"'INSERIMENTO RISULTATI'!E29","v":0},{"$f":"PUNTEGGI!F29","v":0},{"$f":"'INSERIMENTO RISULTATI'!G29","v":0},{"$f":"PUNTEGGI!H29","v":0},{"$f":"'INSERIMENTO RISULTATI'!I29","v":0},{"$f":"PUNTEGGI!J29","v":0},0,0]
[25,{"$f":"'INSERIMENTO RISULTATI'!B30","v":0},{"$f":"'INSERIMENTO RISULTATI'!C30","v":0},"F",{"$f":"'INSERIMENTO RISULTATI'!E30","v":0},{"$f":"PUNTEGGI!F30","v":0},{"$f":"'INSERIMENTO RISULTATI'!G30","v":0},{"$f":"PUNTEGGI!H30","v":0},{"$f":"'INSERIMENTO RISULTATI'!I30","v":0},{"$f":"PUNTEGGI!J30","v":0},0,0]
[26,{"$f":"'INSERIMENTO RISULTATI'!B31","v":0},{"$f":"'INSERIMENTO RISULTATI'!C31","v":0},"F",{"$f":"'INSERIMENTO RISULTATI'!E31","v":0},{"$f":"PUNTEGGI!F31","v":0},{"$f":"'INSERIMENTO RISULTATI'!G31","v":0},{"$f":"PUNTEGGI!H31","v":0},{"$f":"'INSERIMENTO RISULTATI'!I31","v":0},{"$f":"PUNTEGGI!J31","v":0},0,0]
[27,{"$f":"'INSERIMENTO RISULTATI'!B32","v":0},{"$f":"'INSERIMENTO RISULTATI'!C32","v":0},"F",{"$f":"'INSERIMENTO RISULTATI'!E32","v":0},{"$f":"PUNTEGGI!F32","v":0},{"$f":"'INSERIMENTO RISULTATI'!G32","v":0},{"$f":"PUNTEGGI!H32","v":0},{"$f":"'INSERIMENTO RISULTATI'!I32","v":0},{"$f":"PUNTEGGI!J32","v":0},0,0]
[28,{"$f":"'INSERIMENTO RISULTATI'!B33","v":0},{"$f":"'INSERIMENTO RISULTATI'!C33","v":0},"F",{"$f":"'INSERIMENTO RISULTATI'!E33","v":0},{"$f":"PUNTEGGI!F33","v":0},{"$f":"'INSERIMENTO RISULTATI'!G33","v":0},{"$f":"PUNTEGGI!H33","v":0},{"$f":"'INSERIMENTO RISULTATI'!I33","v":0},{"$f":"PUNTEGGI!J33","v":0},0,0]
[29,{"$f":"'INSERIMENTO RISULTATI'!B34","v":0},{"$f":"'INSERIMENTO RISULTATI'!C34","v":0},"F",{"$f":"'INSERIMENTO RISULTATI'!E34","v":0},{"$f":"PUNTEGGI!F34","v":0},{"$f":"'INSERIMENTO RISULTATI'!G34","v":0},{"$f":"PUNTEGGI!H34","v":0},{"$f":"'INSERIMENTO RISULTATI'!I34","v":0},{"$f":"PUNTEGGI!J34","v":0},0,0]
[30,{"$f":"'INSERIMENTO RISULTATI'!B35","v":0},{"$f":"'INSERIMENTO RISULTATI'!C35","v":0},"F",{"$f":"'INSERIMENTO RISULTATI'!E35","v":0},{"$f":"PUNTEGGI!F35","v":0},{"$f":"'INSERIMENTO RISULTATI'!G35","v":0},{"$f":"PUNTEGGI!H35","v":0},{"$f":"'INSERIMENTO RISULTATI'!I35","v":0},{"$f":"PUNTEGGI!J35","v":0},0,0]
[null,null,null,null,null,null,null,null,"INSERIMENTO RISULTATI"]
[null,null,null,null,null,null,null,null,"INSERIMENTO RISULTATI"]
[null,"STAFFETTA (10 X 150 M A NAVETTA)",null,null,null,null,null,null,null,null,"REGOLAMENTO"]
["superiori",{"$f":"B1","v":0},null,{"$f":"D1","v":0}]
["N.","COGNOME","NOME","SESSO (M)","TEMPO"]
[1,{"$f":"B7","v":0},{"$f":"C7","v":0},"M",{"$f":"'INSERIMENTO RISULTATI'!E41","v":0}]
[2,{"$f":"B8","v":0},0,"M"]
[3,0,0,"M"]
[4,0,0,"M"]
[5,0,0,"M"]
[6,0,0,"M"]
[7,0,0,"M"]
[8,0,0,"M"]
[9,0,0,"M"]
[10,0,0,"M"]
[null,null,null,null,null,null,null,null,"INSERIMENTO RISULTATI"]
[null,"PUNTEGGI PROVE",null,null,null,null,null,null,null,null,"REGOLAMENTO"]

{"sheet":"REGOLAMENTO","index":3,"n_rows":86,"n_cols":1,"rows_kept":86,"cut":false,"hidden":false,"merged":[]}
["DESCRIZIONE PROVE"]
["INSERIMENTO RISULTATI"]
["SALTELLI FUNICELLA 30\""]
[]
[]
[]
[]
[]
["- Consegna: eseguire il maggior numero possibile di saltelli nel tempo di 30”"]
["- Materiale: una funicella, un cronometro. "]
["- Descrizione del test: al segnale il soggetto deve eseguire il maggior numero di salti nel tempo di 30 secondi."]
["- Misurazione: si rileva il numero di salti eseguiti in successione nel tempo dato. In caso di errore si riprende la numerazione da dove era stata interrotta."]
["- Note: è possibile scegliere il tipo di salto da eseguire. "]
[]
[]
[]
["DESCRIZIONE PROVE"]
["INSERIMENTO RISULTATI"]
["PROVA DELL'ESAGONO"]
[]
[]
[]
[]
[]
[]
[]
[]
[]
[]
[]
[]
[]
["- Consegna: Consegna: saltare fuori e dentro i lati dell'esagono procedendo in senso orario"]
["- Materiale: un esagono di 66 cm di lato disegnato sul pavimento (si consiglia l'uso di scotch colorato da 5 cm), un cronometro, un assistente."]
["- Descrizione del test: l'allievo si posiziona in mezzo all'esagono, tracciato a terra, di fronte alla linea A (durante tutta l'esecuzione del test resterà con la testa rivolta alla linea A). Al via viene avviato il cronometro e l'allievo salta a piedi pari oltre la linea B, quindi torna nel mezzo dell'esagono, poi oltre la linea C e ritorna nel mezzo, ancora oltre la D e così via (esegue quindi il test in senso orario). Quando l'allievo supera la linea A e ritorna nel mezzo, ha eseguito un giro. L'allievo deve completare tre giri."]
["- Misurazione: il cronometro viene arrestato al termine dei tre giri; dopo qualche minuto di riposo, l'allievo ripete il test in senso antiorario. Una volta completato il secondo test verranno sommati i due tempi registrati."]
["- Note: se si salta sulla linea sbagliata o si atterra su una linea, il test deve essere ripetuto. Prima della misurazione all'allievo sarà data la possibilità di provare il test una sola volta per direzione. L'esagono può essere disegnato facilmente prendendo una corda di 66 cm di lunghezza con la quale si traccia un cerchio a terra. Sempre utilizzando la corda per tracciare i lati, si inscrive nel cerchio l'esagono partendo da una qualunque parte interna alla circonferenza."]
[]
[]
["DESCRIZIONE PROVE"]
["INSERIMENTO RISULTATI"]
["LANCIO DA SEDUTO KG. 2"]
[]
[]
[]
[]
[]
[]
[]
[]
[]
[]
[]
[]
[]
[]
["- Consegna: Il responsabile del test spiega ai partecipanti che devono spingersi con le gambe contro la parete per mantenere il dorso costante- mente a contatto con la stessa durante il getto. Il partecipante deve svolgere almeno una prova valida"]
["- Materiale: 3 palloni medicinali di 2 kg Ø 28 cm, panchina, metro a nastro, nastro adesivo, pettorali, apparecchio per la registrazione dei dati, bastone, 2 palline di gommapiuma (soft-tennis). L’area di lancio misura almeno 10 m. Una panchina è sistemata a contatto con la parete. Un metro a nastro viene fissato sul pavimento davanti alla panchina: lo «0» corrisponde alla parete dietro alla panchina. L’altezza della panchina senza carichi è di 37-38 cm. Con una persona seduta al centro della panchina l’altezza arriva a 35-36 cm. "]
["- Descrizione del test: Glutei e dorso devono toccare la parete. Il pallone medicinale (2 kg) è tenuto con entrambe le mani contro il petto e gettato in avanti da questa posizione. Il getto non è valido se durante l’esecuzione del movimento i glutei perdono il contatto con la panchina o se il dorso si stacca dalla parete. Una pallina di gommapiuma (soft-tennis), posta tra le scapole, dev’essere schiacciata contro la parete per il controllo: durante il getto non deve cadere."]
["- Misurazione: Per la valutazione del getto viene misurata, al centimetro, la distanza tra il punto d’impatto del pallone medicinale al suolo e la parete."]
["- Note: Un responsabile del test e un aiutante. Uno dei due determina la lunghezza del getto indicando immediatamente il punto d’impatto del pallone (centro dello stesso) con un bastone; il secondo posiziona la pallina di gommapiuma, controlla l’esecuzione del getto e registra nel palmare il risultato ottenuto."]
[]
[]
["DESCRIZIONE PROVE"]
["INSERIMENTO RISULTATI"]
["STAFFETTA A NAVETTA 10 X 150 M"]
[]
[]
[]
[]
[]
[]
[]
[]
[]
[]
[]
[]
[]
[]
[]
["- Consegna: eseguire con la maggior velocità possibile una corsa a navetta con distanze progressive di 5 metri compiendo un totale di 150 m per ogni frazionista. La squadra è composta da 10 atlete/i (5 maschi e 5 femmine)"]
["- Materiale: nastro adesivo di demarcazione per delimitare i settori di partenza, dei 5 m, dei 10m, dei 15m, dei 20m, e dei 25 m; cronometro."]
["- Descrizione del test: Al segnale il primo staffettista deve trovarsi all’altezza della linea di partenza, al via corre a toccare con un piede la linea dei 5 m ed inverte la direzione di corsa, supera la linea della partenza e riparte in direzione della linea dei 10 m ed inverte la direzione di corsa per ritornare alla partenza, riparte in direzione della linea dei 15 m ed inverte la direzione di corsa per ritornare alla partenza, riparte in direzione della linea dei 20 m ed inverte la direzione di corsa per ritornare alla partenza, riparte in direzione della linea dei 25 m ed inverte la direzione di corsa per ritornare alla partenza. Quando supera la linea di partenza il secondo frazionista può partire ripetendo lo schema."]
["- Misurazione: Il tempo viene cronometrato alla partenza del primo frazionista e all’arrivo del decimo frazionista."]
["- Note: Se il frazionista parte in anticipo dalla linea di partenza deve ritornare alla partenza prima di poter percorrere una nuova tratta."]

{"sheet":"CLASSIFICA UFFICIO","index":4,"n_rows":68,"n_cols":14,"rows_kept":68,"cut":false,"hidden":true,"merged":[[60,0,61,0],[60,1,61,1],[60,2,61,2],[60,3,61,3],[60,4,60,5],[46,12,46,13],[58,8,58,9],[44,0,47,0],[44,1,47,1],[44,2,47,2],[44,3,47,3],[44,4,44,5],[45,4,45,5],[46,4,46,5],[40,8,40,10],[41,8,41,10],[42,1,42,4],[43,3,43,4],[67,1,67,5],[46,6,46,7],[46,8,46,9],[60,6,61,6],[0,6,0,7],[1,8,1,10],[2,1,2,9],[4,0,5,0],[4,1,5,1],[4,2,5,2],[4,3,5,3],[4,4,4,5],[4,6,4,7],[4,8,4,9]]}
["classe:",{"$f":"'INSERIMENTO RISULTATI'!B1","v":0},"Istituto:",{"$f":"'INSERIMENTO RISULTATI'!D1","v":0},null,"docente:",{"$f":"'INSERIMENTO RISULTATI'!G1","v":0}]
[null,null,null,null,null,null,null,null,"INSERIMENTO RISULTATI"]
["superiori","multiPROVE: (FUNICELLA - ESAGONO - LANCIO)",null,null,null,null,null,null,null,null,"REGOLAMENTO"]
[]
["N.","COGNOME","NOME","SESSO (F)","FUNICELLA",null,"ESAGONO",null,"LANCIO",null,"GENERALE"]
[null,null,null,null,"MISURA","PUNTI","TEMPO","PUNTI","MISURA","PUNTI","TOT. PUNTI"]
[1,{"$f":"CLASSIFICA!B7","v":0},{"$f":"CLASSIFICA!C7","v":0},"F",{"$f":"CLASSIFICA!E7","v":0},{"$f":"CLASSIFICA!F7","v":0},{"$f":"CLASSIFICA!G7","v":0},{"$f":"CLASSIFICA!H7","v":0},{"$f":"CLASSIFICA!I7","v":0},{"$f":"CLASSIFICA!J7","v":0},{"$f":"CLASSIFICA!K7","v":0},{"$f":"K7","v":0}]
[2,{"$f":"CLASSIFICA!B8","v":0},{"$f":"CLASSIFICA!C8","v":0},"F",{"$f":"CLASSIFICA!E8","v":0},{"$f":"CLASSIFICA!F8","v":0},{"$f":"CLASSIFICA!G8","v":0},{"$f":"CLASSIFICA!H8","v":0},{"$f":"CLASSIFICA!I8","v":0},{"$f":"CLASSIFICA!J8","v":0},{"$f":"CLASSIFICA!K8","v":0},0]
[3,{"$f":"CLASSIFICA!B9","v":0},{"$f":"CLASSIFICA!C9","v":0},"F",{"$f":"CLASSIFICA!E9","v":0},{"$f":"CLASSIFICA!F9","v":0},{"$f":"CLASSIFICA!G9","v":0},{"$f":"CLASSIFICA!H9","v":0},{"$f":"CLASSIFICA!I9","v":0},{"$f":"CLASSIFICA!J9","v":0},{"$f":"CLASSIFICA!K9","v":0},0]
[4,{"$f":"CLASSIFICA!B10","v":0},{"$f":"CLASSIFICA!C10","v":0},"F",{"$f":"CLASSIFICA!E10","v":0},{"$f":"CLASSIFICA!F10","v":0},{"$f":"CLASSIFICA!G10","v":0},{"$f":"CLASSIFICA!H10","v":0},{"$f":"CLASSIFICA!I10","v":0},{"$f":"CLASSIFICA!J10","v":0},{"$f":"CLASSIFICA!K10","v":0},0]
[5,{"$f":"CLASSIFICA!B11","v":0},{"$f":"CLASSIFICA!C11","v":0},"F",{"$f":"CLASSIFICA!E11","v":0},{"$f":"CLASSIFICA!F11","v":0},{"$f":"CLASSIFICA!G11","v":0},{"$f":"CLASSIFICA!H11","v":0},{"$f":"CLASSIFICA!I11","v":0},{"$f":"CLASSIFICA!J11","v":0},{"$f":"CLASSIFICA!K11","v":0},0]
[6,{"$f":"CLASSIFICA!B12","v":0},{"$f":"CLASSIFICA!C12","v":0},"F",{"$f":"CLASSIFICA!E12","v":0},{"$f":"CLASSIFICA!F12","v":0},{"$f":"CLASSIFICA!G12","v":0},{"$f":"CLASSIFICA!H12","v":0},{"$f":"CLASSIFICA!I12","v":0},{"$f":"CLASSIFICA!J12","v":0},{"$f":"CLASSIFICA!K12","v":0},0]
[7,{"$f":"CLASSIFICA!B13","v":0},{"$f":"CLASSIFICA!C13","v":0},"F",{"$f":"CLASSIFICA!E13","v":0},{"$f":"CLASSIFICA!F13","v":0},{"$f":"CLASSIFICA!G13","v":0},{"$f":"CLASSIFICA!H13","v":0},{"$f":"CLASSIFICA!I13","v":0},{"$f":"CLASSIFICA!J13","v":0},{"$f":"CLASSIFICA!K13","v":0},0]
[8,{"$f":"CLASSIFICA!B14","v":0},{"$f":"CLASSIFICA!C14","v":0},"F",{"$f":"CLASSIFICA!E14","v":0},{"$f":"CLASSIFICA!F14","v":0},{"$f":"CLASSIFICA!G14","v":0},{"$f":"CLASSIFICA!H14","v":0},{"$f":"CLASSIFICA!I14","v":0},{"$f":"CLASSIFICA!J14","v":0},{"$f":"CLASSIFICA!K14","v":0},0]
[9,{"$f":"CLASSIFICA!B15","v":0},{"$f":"CLASSIFICA!C15","v":0},"F",{"$f":"CLASSIFICA!E15","v":0},{"$f":"CLASSIFICA!F15","v":0},{"$f":"CLASSIFICA!G15","v":0},{"$f":"CLASSIFICA!H15","v":0},{"$f":"CLASSIFICA!I15","v":0},{"$f":"CLASSIFICA!J15","v":0},{"$f":"CLASSIFICA!K15","v":0},0]
[10,{"$f":"CLASSIFICA!B16","v":0},{"$f":"CLASSIFICA!C16","v":0},"F",{"$f":"CLASSIFICA!E16","v":0},{"$f":"CLASSIFICA!F16","v":0},{"$f":"CLASSIFICA!G16","v":0},{"$f":"CLASSIFICA!H16","v":0},{"$f":"CLASSIFICA!I16","v":0},{"$f":"CLASSIFICA!J16","v":0},{"$f":"CLASSIFICA!K16","v":0},0]
[11,{"$f":"CLASSIFICA!B17","v":0},{"$f":"CLASSIFICA!C17","v":0},"F",{"$f":"CLASSIFICA!E17","v":0},{"$f":"CLASSIFICA!F17","v":0},{"$f":"CLASSIFICA!G17","v":0},{"$f":"CLASSIFICA!H17","v":0},{"$f":"CLASSIFICA!I17","v":0},{"$f":"CLASSIFICA!J17","v":0},{"$f":"CLASSIFICA!K17","v":0},0]
[12,{"$f":"CLASSIFICA!B18","v":0},{"$f":"CLASSIFICA!C18","v":0},"F",{"$f":"CLASSIFICA!E18","v":0},{"$f":"CLASSIFICA!F18","v":0},{"$f":"CLASSIFICA!G18","v":0},{"$f":"CLASSIFICA!H18","v":0},{"$f":"CLASSIFICA!I18","v":0},{"$f":"CLASSIFICA!J18","v":0},{"$f":"CLASSIFICA!K18","v":0},0]
[13,{"$f":"CLASSIFICA!B19","v":0},{"$f":"CLASSIFICA!C19","v":0},"F",{"$f":"CLASSIFICA!E19","v":0},{"$f":"CLASSIFICA!F19","v":0},{"$f":"CLASSIFICA!G19","v":0},{"$f":"CLASSIFICA!H19","v":0},{"$f":"CLASSIFICA!I19","v":0},{"$f":"CLASSIFICA!J19","v":0},{"$f":"CLASSIFICA!K19","v":0},0]
[14,{"$f":"CLASSIFICA!B20","v":0},{"$f":"CLASSIFICA!C20","v":0},"F",{"$f":"CLASSIFICA!E20","v":0},{"$f":"CLASSIFICA!F20","v":0},{"$f":"CLASSIFICA!G20","v":0},{"$f":"CLASSIFICA!H20","v":0},{"$f":"CLASSIFICA!I20","v":0},{"$f":"CLASSIFICA!J20","v":0},{"$f":"CLASSIFICA!K20","v":0},0]
[15,{"$f":"CLASSIFICA!B21","v":0},{"$f":"CLASSIFICA!C21","v":0},"F",{"$f":"CLASSIFICA!E21","v":0},{"$f":"CLASSIFICA!F21","v":0},{"$f":"CLASSIFICA!G21","v":0},{"$f":"CLASSIFICA!H21","v":0},{"$f":"CLASSIFICA!I21","v":0},{"$f":"CLASSIFICA!J21","v":0},{"$f":"CLASSIFICA!K21","v":0}]
[16,{"$f":"CLASSIFICA!B22","v":0},{"$f":"CLASSIFICA!C22","v":0},"F",{"$f":"CLASSIFICA!E22","v":0},{"$f":"CLASSIFICA!F22","v":0},{"$f":"CLASSIFICA!G22","v":0},{"$f":"CLASSIFICA!H22","v":0},{"$f":"CLASSIFICA!I22","v":0},{"$f":"CLASSIFICA!J22","v":0},{"$f":"CLASSIFICA!K22","v":0}]
[17,{"$f":"CLASSIFICA!B23","v":0},{"$f":"CLASSIFICA!C23","v":0},"F",{"$f":"CLASSIFICA!E23","v":0},{"$f":"CLASSIFICA!F23","v":0},{"$f":"CLASSIFICA!G23","v":0},{"$f":"CLASSIFICA!H23","v":0},{"$f":"CLASSIFICA!I23","v":0},{"$f":"CLASSIFICA!J23","v":0},{"$f":"CLASSIFICA!K23","v":0}]
[18,{"$f":"CLASSIFICA!B24","v":0},{"$f":"CLASSIFICA!C24","v":0},"F",{"$f":"CLASSIFICA!E24","v":0},{"$f":"CLASSIFICA!F24","v":0},{"$f":"CLASSIFICA!G24","v":0},{"$f":"CLASSIFICA!H24","v":0},{"$f":"CLASSIFICA!I24","v":0},{"$f":"CLASSIFICA!J24","v":0},{"$f":"CLASSIFICA!K24","v":0}]
[19,{"$f":"CLASSIFICA!B25","v":0},{"$f":"CLASSIFICA!C25","v":0},"F",{"$f":"CLASSIFICA!E25","v":0},{"$f":"CLASSIFICA!F25","v":0},{"$f":"CLASSIFICA!G25","v":0},{"$f":"CLASSIFICA!H25","v":0},{"$f":"CLASSIFICA!I25","v":0},{"$f":"CLASSIFICA!J25","v":0},{"$f":"CLASSIFICA!K25","v":0}]
[20,{"$f":"CLASSIFICA!B26","v":0},{"$f":"CLASSIFICA!C26","v":0},"F",{"$f":"CLASSIFICA!E26","v":0},{"$f":"CLASSIFICA!F26","v":0},{"$f":"CLASSIFICA!G26","v":0},{"$f":"CLASSIFICA!H26","v":0},{"$f":"CLASSIFICA!I26","v":0},{"$f":"CLASSIFICA!J26","v":0},{"$f":"CLASSIFICA!K26","v":0}]
[21,{"$f":"CLASSIFICA!B27","v":0},{"$f":"CLASSIFICA!C27","v":0},"F",{"$f":"CLASSIFICA!E27","v":0},{"$f":"CLASSIFICA!F27","v":0},{"$f":"CLASSIFICA!G27","v":0},{"$f":"CLASSIFICA!H27","v":0},{"$f":"CLASSIFICA!I27","v":0},{"$f":"CLASSIFICA!J27","v":0},{"$f":"CLASSIFICA!K27","v":0}]
[22,{"$f":"CLASSIFICA!B28","v":0},{"$f":"CLASSIFICA!C28","v":0},"F",{"$f":"CLASSIFICA!E28","v":0},{"$f":"CLASSIFICA!F28","v":0},{"$f":"CLASSIFICA!G28","v":0},{"$f":"CLASSIFICA!H28","v":0},{"$f":"CLASSIFICA!I28","v":0},{"$f":"CLASSIFICA!J28","v":0},{"$f":"CLASSIFICA!K28","v":0}]
[23,{"$f":"CLASSIFICA!B29","v":0},{"$f":"CLASSIFICA!C29","v":0},"F",{"$f":"CLASSIFICA!E29","v":0},{"$f":"CLASSIFICA!F29","v":0},{"$f":"CLASSIFICA!G29","v":0},{"$f":"CLASSIFICA!H29","v":0},{"$f":"CLASSIFICA!I29","v":0},{"$f":"CLASSIFICA!J29","v":0},{"$f":"CLASSIFICA!K29","v":0}]
[24,{"$f":"CLASSIFICA!B30","v":0},{"$f":"CLASSIFICA!C30","v":0},"F",{"$f":"CLASSIFICA!E30","v":0},{"$f":"CLASSIFICA!F30","v":0},{"$f":"CLASSIFICA!G30","v":0},{"$f":"CLASSIFICA!H30","v":0},{"$f":"CLASSIFICA!I30","v":0},{"$f":"CLASSIFICA!J30","v":0},{"$f":"CLASSIFICA!K30","v":0}]
[25,{"$f":"CLASSIFICA!B31","v":0},{"$f":"CLASSIFICA!C31","v":0},"F",{"$f":"CLASSIFICA!E31","v":0},{"$f":"CLASSIFICA!F31","v":0},{"$f":"CLASSIFICA!G31","v":0},{"$f":"CLASSIFICA!H31","v":0},{"$f":"CLASSIFICA!I31","v":0},{"$f":"CLASSIFICA!J31","v":0},{"$f":"CLASSIFICA!K31","v":0}]
[26,{"$f":"CLASSIFICA!B32","v":0},{"$f":"CLASSIFICA!C32","v":0},"F",{"$f":"CLASSIFICA!E32","v":0},{"$f":"CLASSIFICA!F32","v":0},{"$f":"CLASSIFICA!G32","v":0},{"$f":"CLASSIFICA!H32","v":0},{"$f":"CLASSIFICA!I32","v":0},{"$f":"CLASSIFICA!J32","v":0},{"$f":"CLASSIFICA!K32","v":0}]
[27,{"$f":"CLASSIFICA!B33","v":0},{"$f":"CLASSIFICA!C33","v":0},"F",{"$f":"CLASSIFICA!E33","v":0},{"$f":"CLASSIFICA!F33","v":0},{"$f":"CLASSIFICA!G33","v":0},{"$f":"CLASSIFICA!H33","v":0},{"$f":"CLASSIFICA!I33","v":0},{"$f":"CLASSIFICA!J33","v":0},{"$f":"CLASSIFICA!K33","v":0}]
[28,{"$f":"CLASSIFICA!B34","v":0},{"$f":"CLASSIFICA!C34","v":0},"F",{"$f":"CLASSIFICA!E34","v":0},{"$f":"CLASSIFICA!F34","v":0},{"$f":"CLASSIFICA!G34","v":0},{"$f":"CLASSIFICA!H34","v":0},{"$f":"CLASSIFICA!I34","v":0},{"$f":"CLASSIFICA!J34","v":0},{"$f":"CLASSIFICA!K34","v":0}]
[29,{"$f":"CLASSIFICA!B35","v":0},{"$f":"CLASSIFICA!C35","v":0},"F",{"$f":"CLASSIFICA!E35","v":0},{"$f":"CLASSIFICA!F35","v":0},{"$f":"CLASSIFICA!G35","v":0},{"$f":"CLASSIFICA!H35","v":0},{"$f":"CLASSIFICA!I35","v":0},{"$f":"CLASSIFICA!J35","v":0},{"$f":"CLASSIFICA!K35","v":0}]
[30,{"$f":"CLASSIFICA!B36","v":0},{"$f":"CLASSIFICA!C36","v":0},"F",{"$f":"CLASSIFICA!E36","v":0},{"$f":"CLASSIFICA!F36","v":0},{"$f":"CLASSIFICA!G36","v":0},{"$f":"CLASSIFICA!H36","v":0},{"$f":"CLASSIFICA!I36","v":0},{"$f":"CLASSIFICA!J36","v":0},{"$f":"CLASSIFICA!K36","v":0},0]
[]
[]
[]
[]
[]
[null,null,null,null,null,null,null,null,"INSERIMENTO RISULTATI"]
[null,"STAFFETTA (10 X 150 M A NAVETTA)",null,null,null,null,null,null,null,null,"REGOLAMENTO"]
["superiori",{"$f":"B1","v":0},null,{"$f":"D1","v":0}]
["N.","COGNOME","NOME","SESSO (F)","TEMPO"]
[1,{"$f":"'INSERIMENTO RISULTATI'!B41","v":0},{"$f":"'INSERIMENTO RISULTATI'!C41","v":0},"M",{"$f":"'INSERIMENTO RISULTATI'!E41","v":0}]
[2,{"$f":"'INSERIMENTO RISULTATI'!B42","v":0},{"$f":"'INSERIMENTO RISULTATI'!C42","v":0},"M","FUNICELLA",null,"ESAGONO",null,"LANCIO",null,"GENERALE",null,"STAFFETTA"]
[3,{"$f":"'INSERIMENTO RISULTATI'!B43","v":0},{"$f":"'INSERIMENTO RISULTATI'!C43","v":0},"M","MISURA","PUNTI","TEMPO","PUNTI","MISURA","PUNTI","TOT. PUNTI",null,"TEMPO","PUNTI"]
[1,{"$f":"B7","v":0},{"$f":"C7","v":0},"F",{"$f":"E7","v":0},0,0,0,0,0,0,null,{"$f":"E46","v":0},5]
[2,{"$f":"B8","v":0},0,"F",{"$f":"E8","v":0},0,0,0,0,0,{"$f":"K8","v":0}]
[3,0,0,"F",0,0,0,0,0,0,{"$f":"K9","v":0}]
[4,0,0,"F",0,0,0,0,0,0,{"$f":"K10","v":0}]
[5,0,0,"F",0,0,0,0,0,0,{"$f":"K11","v":0}]
[6,0,0,"F",0,0,0,0,0,0,0]
[7,0,0,"F",0,0,0,0,0,0,0]
[8,0,0,"F",0,0,0,0,0,0,0]
[9,0,0,"F",0,0,0,0,0,0,0]
[10,0,0,"F",0,0,0,0,0,0,0]
[null,null,null,null,null,null,null,null,null,null,{"$f":"SUM(K49:K58)","v":0}]
[]
["N.","ISTITUTO","CLASSE","PARZIALE PUNTI","STAFFETTA",null,"PUNTEGGIO TOTALE SCUOLE"]
[null,null,null,null,"TEMPO","PUNTI"]
[1,{"$f":"'INSERIMENTO RISULTATI'!D1","v":0},{"$f":"'INSERIMENTO RISULTATI'!B1","v":0},{"$f":"SUM(K49:K58)","v":0},{"$f":"E46","v":0},null,{"$f":"SUM(D63,F63)","v":0}]
[]
[]
[]
[]
[null,"PUNTEGGI PROVE"]

{"sheet":"UFFICIO","index":5,"n_rows":150,"n_cols":357,"rows_kept":150,"cut":false,"hidden":true,"merged":[[3,354,4,354],[3,355,4,355],[3,253,4,253],[3,269,4,269],[3,270,4,270],[3,286,4,286],[3,287,4,287],[3,303,4,303],[3,304,4,304],[3,320,4,320],[3,321,4,321],[3,346,3,347],[3,348,3,349],[3,352,3,353],[3,329,3,330],[3,331,3,332],[3,335,3,336],[3,337,4,337],[3,338,4,338],[3,312,3,313],[3,318,3,319],[3,295,3,296],[3,297,3,298],[3,301,3,302],[3,235,4,235],[3,236,4,236],[3,252,4,252],[3,244,3,245],[3,246,3,247],[3,250,3,251],[3,227,3,228],[3,229,3,230],[3,233,3,234],[3,23,3,24],[3,25,3,26],[3,29,3,30],[3,184,4,184],[3,185,4,185],[3,201,4,201],[3,202,4,202],[3,218,4,218],[3,219,4,219],[3,210,3,211],[3,212,3,213],[3,216,3,217],[3,193,3,194],[3,195,3,196],[3,199,3,200],[3,182,3,183],[3,159,3,160],[3,161,3,162],[3,165,3,166],[3,167,4,167],[3,168,4,168],[1,123,1,124],[2,123,2,124],[3,31,4,31],[3,32,4,32],[3,48,4,48],[3,49,4,49],[3,65,4,65],[3,66,4,66],[3,82,4,82],[2,38,2,39],[3,38,3,39],[3,80,3,81],[3,46,3,47],[3,116,4,116],[3,117,4,117],[3,83,4,83],[15,348,15,349],[20,340,21,340],[20,341,21,341],[20,342,21,342],[20,343,21,343],[20,344,20,345],[20,346,21,346],[0,343,0,344],[1,340,4,340],[1,341,4,341],[1,342,4,342],[1,343,4,343],[1,344,1,345],[2,344,2,345],[3,344,3,345],[15,331,15,332],[20,323,21,323],[20,324,21,324],[20,325,21,325],[20,326,21,326],[20,327,20,328],[20,329,21,329],[0,326,0,327],[1,323,4,323],[1,324,4,324],[1,325,4,325],[1,326,4,326],[1,327,1,328],[2,327,2,328],[3,327,3,328],[15,314,15,315],[20,306,21,306],[20,307,21,307],[20,308,21,308],[20,309,21,309],[20,310,20,311],[20,312,21,312],[0,309,0,310],[1,306,4,306],[1,307,4,307],[1,308,4,308],[1,309,4,309],[1,310,1,311],[2,310,2,311],[3,310,3,311],[3,314,3,315],[15,297,15,298],[20,289,21,289],[20,290,21,290],[20,291,21,291],[20,292,21,292],[20,293,20,294],[20,295,21,295],[0,292,0,293],[1,289,4,289],[1,290,4,290],[1,291,4,291],[1,292,4,292],[1,293,1,294],[2,293,2,294],[3,293,3,294],[3,278,3,279],[3,280,3,281],[3,284,3,285],[15,280,15,281],[20,272,21,272],[20,273,21,273],[20,274,21,274],[20,275,21,275],[20,276,20,277],[20,278,21,278],[0,275,0,276],[1,272,4,272],[1,273,4,273],[1,274,4,274],[1,275,4,275],[1,276,1,277],[2,276,2,277],[3,276,3,277],[3,261,3,262],[3,263,3,264],[3,267,3,268],[15,263,15,264],[20,255,21,255],[20,256,21,256],[20,257,21,257],[20,258,21,258],[20,259,20,260],[20,261,21,261],[0,258,0,259],[1,255,4,255],[1,256,4,256],[1,257,4,257],[1,258,4,258],[1,259,1,260],[2,259,2,260],[3,259,3,260],[15,246,15,247],[20,238,21,238],[20,239,21,239],[20,240,21,240],[20,241,21,241],[20,242,20,243],[20,244,21,244],[0,241,0,242],[1,238,4,238],[1,239,4,239],[1,240,4,240],[1,241,4,241],[1,242,1,243],[2,242,2,243],[3,242,3,243],[15,229,15,230],[20,221,21,221],[20,222,21,222],[20,223,21,223],[20,224,21,224],[20,225,20,226],[20,227,21,227],[0,224,0,225],[1,221,4,221],[1,222,4,222],[1,223,4,223],[1,224,4,224],[1,225,1,226],[2,225,2,226],[3,225,3,226],[15,212,15,213],[20,204,21,204],[20,205,21,205],[20,206,21,206],[20,207,21,207],[20,208,20,209],[20,210,21,210],[0,207,0,208],[1,204,4,204],[1,205,4,205],[1,206,4,206],[1,207,4,207],[1,208,1,209],[2,208,2,209],[3,208,3,209],[15,195,15,196],[20,187,21,187],[20,188,21,188],[20,189,21,189],[20,190,21,190],[20,191,20,192],[20,193,21,193],[0,190,0,191],[1,187,4,187],[1,188,4,188],[1,189,4,189],[1,190,4,190],[1,191,1,192],[2,191,2,192],[3,191,3,192],[15,178,15,179],[20,170,21,170],[20,171,21,171],[20,172,21,172],[20,173,21,173],[20,174,20,175],[20,176,21,176],[0,173,0,174],[1,170,4,170],[1,171,4,171],[1,172,4,172],[1,173,4,173],[1,174,1,175],[2,174,2,175],[3,174,3,175],[3,176,3,177],[3,178,3,179],[15,161,15,162],[20,153,21,153],[20,154,21,154],[20,155,21,155],[20,156,21,156],[20,157,20,158],[20,159,21,159],[20,140,20,141],[20,142,21,142],[0,156,0,157],[1,153,4,153],[1,154,4,154],[1,155,4,155],[1,156,4,156],[1,157,1,158],[2,157,2,158],[3,157,3,158],[20,125,21,125],[20,136,21,136],[20,137,21,137],[20,138,21,138],[20,139,21,139],[3,133,4,133],[3,134,4,134],[3,150,4,150],[3,151,4,151],[20,119,21,119],[20,120,21,120],[20,121,21,121],[20,122,21,122],[20,123,20,124],[3,142,3,143],[3,144,3,145],[3,148,3,149],[15,144,15,145],[3,123,3,124],[20,85,21,85],[20,86,21,86],[20,87,21,87],[20,88,21,88],[20,89,20,90],[20,91,21,91],[20,102,21,102],[20,103,21,103],[20,104,21,104],[20,105,21,105],[20,106,20,107],[20,108,21,108],[3,125,3,126],[3,127,3,128],[3,131,3,132],[15,127,15,128],[0,139,0,140],[1,136,4,136],[1,137,4,137],[1,138,4,138],[1,139,4,139],[1,140,1,141],[2,140,2,141],[3,140,3,141],[3,108,3,109],[3,110,3,111],[3,114,3,115],[15,110,15,111],[0,122,0,123],[1,119,4,119],[1,120,4,120],[1,121,4,121],[1,122,4,122],[15,93,15,94],[0,105,0,106],[1,102,4,102],[1,103,4,103],[1,104,4,104],[1,105,4,105],[1,106,1,107],[2,106,2,107],[3,106,3,107],[3,99,4,99],[3,100,4,100],[3,93,3,94],[3,97,3,98],[0,88,0,89],[1,85,4,85],[1,86,4,86],[1,87,4,87],[1,88,4,88],[1,89,1,90],[2,89,2,90],[3,89,3,90],[3,91,3,92],[15,76,15,77],[20,68,21,68],[20,69,21,69],[20,70,21,70],[20,71,21,71],[20,72,20,73],[20,74,21,74],[3,74,3,75],[3,76,3,77],[20,34,21,34],[20,35,21,35],[20,36,21,36],[20,37,21,37],[20,38,20,39],[20,40,21,40],[3,40,3,41],[3,42,3,43],[0,37,0,38],[1,34,4,34],[1,35,4,35],[1,36,4,36],[1,37,4,37],[1,38,1,39],[15,42,15,43],[0,71,0,72],[1,68,4,68],[1,69,4,69],[1,70,4,70],[1,71,4,71],[1,72,1,73],[2,72,2,73],[3,72,3,73],[0,54,0,55],[3,63,3,64],[15,59,15,60],[20,51,21,51],[20,52,21,52],[20,53,21,53],[20,54,21,54],[20,55,20,56],[20,57,21,57],[3,57,3,58],[3,59,3,60],[1,51,4,51],[1,52,4,52],[1,53,4,53],[1,54,4,54],[1,55,1,56],[2,55,2,56],[3,55,3,56],[15,25,15,26],[17,23,18,23],[1,21,1,22],[2,21,2,22],[3,21,3,22],[27,0,28,0],[27,1,28,1],[27,2,28,2],[27,3,28,3],[27,4,27,5],[27,6,28,6],[1,0,4,0],[1,1,4,1],[1,2,4,2],[1,3,4,3],[17,21,17,22],[3,12,3,13],[15,8,15,9],[3,4,3,5],[3,6,3,7],[3,8,3,9],[3,14,4,14],[3,15,4,15],[17,0,18,0],[25,1,25,5],[24,1,24,5],[0,20,0,21],[0,3,0,4],[1,4,1,5],[2,4,2,5],[22,1,22,5],[23,1,23,5],[17,17,18,17],[17,18,18,18],[17,19,18,19],[17,20,18,20],[17,1,18,1],[17,2,18,2],[17,3,18,3],[17,4,17,5],[17,6,18,6],[1,17,4,17],[1,18,4,18],[1,19,4,19],[1,20,4,20]]}
["superiori",null,null,null,null,null,null,null,null,null,null,null,null,null,null,null,1,"III media","3D",null,"IC CAPRINO",null,null,null,null,null,null,null,null,null,null,null,null,2,"III media","3F",null,"IC MONTEFORTE",null,null,null,null,null,null,null,null,null,null,null,null,3,null,"3K",null,"IC GREZZANA",null,null,null,null,null,null,null,null,null,null,null,null,4,null,"3C",null,"IC DOSSOBUONO",null,null,null,null,null,null,null,null,null,null,null,null,5,null,"3H",null,"IC BOSCO",null,null,null,null,null,null,null,null,null,null,null,null,6,null,"3L",null,"IC LAVAGNO",null,null,null,null,null,null,null,null,null,null,null,null,7,null,"3B",null,"IC LEGNAGO",null,null,null,null,null,null,null,null,null,null,null,null,8,null,"3B",null,"IC SAN BONIFACIO",null,null,null,null,null,null,null,null,null,null,null,null,9,null,"3F",null,"IC SONA",null,null,null,null,null,null,null,null,null,null,null,null,10,null,"3G",null,"IC MARZANA",null,null,null,null,null,null,null,null,null,null,null,null,11,null,"3D",null,"IC LAVAGNO",null,null,null,null,null,null,null,null,null,null,null,null,12,null,"3F",null,"IC BOSCO",null,null,null,null,null,null,null,null,null,null,null,null,13,null,"3G",null,"IC SONA",null,null,null,null,null,null,null,null,null,null,null,null,14,null,"3L",null,"IC VR 02",null,null,null,null,null,null,null,null,null,null,null,null,15,null,"3G",null,"IC VR 14",null,null,null,null,null,null,null,null,null,null,null,null,16,null,"3F",null,"IC VR 17",null,null,null,null,null,null,null,null,null,null,null,null,17,null,"3A",null,"IC VR 06",null,null,null,null,null,null,null,null,null,null,null,null,18,null,"3K",null,"IC VR 19",null,null,null,null,null,null,null,null,null,null,null,null,19,null,"3D",null,"IC VR 08",null,null,null,null,null,null,null,null,null,null,null,null,20,null,"3F",null,"IC NEGRAR",null,null,null,null,null,null,null,null,null,null,null,null,21]
["N.","COGNOME","NOME","SESSO (F)","TEMPO",null,null,null,null,null,null,null,null,null,null,null,null,"N.","COGNOME","NOME","SESSO (M-F)","TEMPO",null,null,null,null,null,null,null,null,null,null,null,null,"N.","COGNOME","NOME","SESSO (M-F)","TEMPO",null,null,null,null,null,null,null,null,null,null,null,null,"N.","COGNOME","NOME","SESSO (M-F)","TEMPO",null,null,null,null,null,null,null,null,null,null,null,null,"N.","COGNOME","NOME","SESSO (M-F)","TEMPO",null,null,null,null,null,null,null,null,null,null,null,null,"N.","COGNOME","NOME","SESSO (M-F)","TEMPO",null,null,null,null,null,null,null,null,null,null,null,null,"N.","COGNOME","NOME","SESSO (M-F)","TEMPO",null,null,null,null,null,null,null,null,null,null,null,null,"N.","COGNOME","NOME","SESSO (M-F)","TEMPO",null,null,null,null,null,null,null,null,null,null,null,null,"N.","COGNOME","NOME","SESSO (M-F)","TEMPO",null,null,null,null,null,null,null,null,null,null,null,null,"N.","COGNOME","NOME","SESSO (M-F)","TEMPO",null,null,null,null,null,null,null,null,null,null,null,null,"N.","COGNOME","NOME","SESSO (M-F)","TEMPO",null,null,null,null,null,null,null,null,null,null,null,null,"N.","COGNOME","NOME","SESSO (M-F)","TEMPO",null,null,null,null,null,null,null,null,null,null,null,null,"N.","COGNOME","NOME","SESSO (M-F)","TEMPO",null,null,null,null,null,null,null,null,null,null,null,null,"N.","COGNOME","NOME","SESSO (M-F)","TEMPO",null,null,null,null,null,null,null,null,null,null,null,null,"N.","COGNOME","NOME","SESSO (M-F)","TEMPO",null,null,null,null,null,null,null,null,null,null,null,null,"N.","COGNOME","NOME","SESSO (M-F)","TEMPO",null,null,null,null,null,null,null,null,null,null,null,null,"N.","COGNOME","NOME","SESSO (M-F)","TEMPO",null,null,null,null,null,null,null,null,null,null,null,null,"N.","COGNOME","NOME","SESSO (M-F)","TEMPO",null,null,null,null,null,null,null,null,null,null,null,null,"N.","COGNOME","NOME","SESSO (M-F)","TEMPO",null,null,null,null,null,null,null,null,null,null,null,null,"N.","COGNOME","NOME","SESSO (M-F)","TEMPO",null,null,null,null,null,null,null,null,null,null,null,null,"N.","COGNOME","NOME","SESSO (M-F)","TEMPO"]
[1,0,0,"M",null,null,null,null,null,null,null,null,null,null,null,null,null,1,0,0,"M","2'00\"32",null,null,null,null,null,null,null,null,null,null,null,null,1,0,0,"M","2'02\"34",null,null,null,null,null,null,null,null,null,null,null,null,1,0,0,"M",null,null,null,null,null,null,null,null,null,null,null,null,null,1,0,0,"M",null,null,null,null,null,null,null,null,null,null,null,null,null,1,0,0,"M",null,null,null,null,null,null,null,null,null,null,null,null,null,1,0,0,"M",null,null,null,null,null,null,null,null,null,null,null,null,null,1,0,0,"M",null,null,null,null,null,null,null,null,null,null,null,null,null,1,0,0,"M",null,null,null,null,null,null,null,null,null,null,null,null,null,1,0,0,"M",null,null,null,null,null,null,null,null,null,null,null,null,null,1,0,0,"M",null,null,null,null,null,null,null,null,null,null,null,null,null,1,0,0,"M",null,null,null,null,null,null,null,null,null,null,null,null,null,1,0,0,"M",null,null,null,null,null,null,null,null,null,null,null,null,null,1,0,0,"M",null,null,null,null,null,null,null,null,null,null,null,null,null,1,0,0,"M",null,null,null,null,null,null,null,null,null,null,null,null,null,1,0,0,"M",null,null,null,null,null,null,null,null,null,null,null,null,null,1,0,0,"M",null,null,null,null,null,null,null,null,null,null,null,null,null,1,0,0,"M",null,null,null,null,null,null,null,null,null,null,null,null,null,1,0,0,"M",null,null,null,null,null,null,null,null,null,null,null,null,null,1,0,0,"M",null,null,null,null,null,null,null,null,null,null,null,null,null,1,0,0,"M"]
[2,0,0,"M","FUNICELLA",null,"ESAGONO",null,"LANCIO",null,"GENERALE",null,"STAFFETTA",null,"CL","IST",null,2,0,0,"M","SALTO IN LUNGO",null,"CORSA 30 OSTACOLI",null,"LANCIO DEL VORTEX",null,"GENERALE",null,"STAFFETTA",null,"CL","IST",null,2,0,0,"M","SALTO IN LUNGO",null,"CORSA 30 OSTACOLI",null,"LANCIO DEL VORTEX",null,"GENERALE",null,"STAFFETTA",null,"CL","IST",null,2,0,0,"M","SALTO IN LUNGO",null,"CORSA 30 OSTACOLI",null,"LANCIO DEL VORTEX",null,"GENERALE",null,"STAFFETTA",null,"CL","IST",null,2,0,0,"M","SALTO IN LUNGO",null,"CORSA 30 OSTACOLI",null,"LANCIO DEL VORTEX",null,"GENERALE",null,"STAFFETTA",null,"CL","IST",null,2,0,0,"M","SALTO IN LUNGO",null,"CORSA 30 OSTACOLI",null,"LANCIO DEL VORTEX",null,"GENERALE",null,"STAFFETTA",null,"CL","IST",null,2,0,0,"M","SALTO IN LUNGO",null,"CORSA 30 OSTACOLI",null,"LANCIO DEL VORTEX",null,"GENERALE",null,"STAFFETTA",null,"CL","IST",null,2,0,0,"M","SALTO IN LUNGO",null,"CORSA 30 OSTACOLI",null,"LANCIO DEL VORTEX",null,"GENERALE",null,"STAFFETTA",null,"CL","IST",null,2,0,0,"M","SALTO IN LUNGO",null,"CORSA 30 OSTACOLI",null,"LANCIO DEL VORTEX",null,"GENERALE",null,"STAFFETTA",null,"CL","IST",null,2,0,0,"M","SALTO IN LUNGO",null,"CORSA 30 OSTACOLI",null,"LANCIO DEL VORTEX",null,"GENERALE",null,"STAFFETTA",null,"CL","IST",null,2,0,0,"M","SALTO IN LUNGO",null,"CORSA 30 OSTACOLI",null,"LANCIO DEL VORTEX",null,"GENERALE",null,"STAFFETTA",null,"CL","IST",null,2,0,0,"M","SALTO IN LUNGO",null,"CORSA 30 OSTACOLI",null,"LANCIO DEL VORTEX",null,"GENERALE",null,"STAFFETTA",null,"CL","IST",null,2,0,0,"M","SALTO IN LUNGO",null,"CORSA 30 OSTACOLI",null,"LANCIO DEL VORTEX",null,"GENERALE",null,"STAFFETTA",null,"CL","IST",null,2,0,0,"M","SALTO IN LUNGO",null,"CORSA 30 OSTACOLI",null,"LANCIO DEL VORTEX",null,"GENERALE",null,"STAFFETTA",null,"CL","IST",null,2,0,0,"M","SALTO IN LUNGO",null,"CORSA 30 OSTACOLI",null,"LANCIO DEL VORTEX",null,"GENERALE",null,"STAFFETTA",null,"CL","IST",null,2,0,0,"M","SALTO IN LUNGO",null,"CORSA 30 OSTACOLI",null,"LANCIO DEL VORTEX",null,"GENERALE",null,"STAFFETTA",null,"CL","IST",null,2,0,0,"M","SALTO IN LUNGO",null,"CORSA 30 OSTACOLI",null,"LANCIO DEL VORTEX",null,"GENERALE",null,"STAFFETTA",null,"CL","IST",null,2,0,0,"M","SALTO IN LUNGO",null,"CORSA 30 OSTACOLI",null,"LANCIO DEL VORTEX",null,"GENERALE",null,"STAFFETTA",null,"CL","IST",null,2,0,0,"M","SALTO IN LUNGO",null,"CORSA 30 OSTACOLI",null,"LANCIO DEL VORTEX",null,"GENERALE",null,"STAFFETTA",null,"CL","IST",null,2,0,0,"M","SALTO IN LUNGO",null,"CORSA 30 OSTACOLI",null,"LANCIO DEL VORTEX",null,"GENERALE",null,"STAFFETTA",null,"CL","IST",null,2,0,0,"M","SALTO IN LUNGO",null,"CORSA 30 OSTACOLI",null,"LANCIO DEL VORTEX",null,"GENERALE",null,"STAFFETTA",null,"CL","IST"]
[3,0,0,"M","MISURA","PUNTI","TEMPO","PUNTI","MISURA","PUNTI","TOT. PUNTI",null,"TEMPO","PUNTI",null,null,null,3,0,0,"M","MISURA","PUNTI","TEMPO","PUNTI","MISURA","PUNTI","TOT. PUNTI",null,"TEMPO","PUNTI",null,null,null,3,0,0,"M","MISURA","PUNTI","TEMPO","PUNTI","MISURA","PUNTI","TOT. PUNTI",null,"TEMPO","PUNTI",null,null,null,3,0,0,"M","MISURA","PUNTI","TEMPO","PUNTI","MISURA","PUNTI","TOT. PUNTI",null,"TEMPO","PUNTI",null,null,null,3,0,0,"M","MISURA","PUNTI","TEMPO","PUNTI","MISURA","PUNTI","TOT. PUNTI",null,"TEMPO","PUNTI",null,null,null,3,0,0,"M","MISURA","PUNTI","TEMPO","PUNTI","MISURA","PUNTI","TOT. PUNTI",null,"TEMPO","PUNTI",null,null,null,3,0,0,"M","MISURA","PUNTI","TEMPO","PUNTI","MISURA","PUNTI","TOT. PUNTI",null,"TEMPO","PUNTI",null,null,null,3,0,0,"M","MISURA","PUNTI","TEMPO","PUNTI","MISURA","PUNTI","TOT. PUNTI",null,"TEMPO","PUNTI",null,null,null,3,0,0,"M","MISURA","PUNTI","TEMPO","PUNTI","MISURA","PUNTI","TOT. PUNTI",null,"TEMPO","PUNTI",null,null,null,3,0,0,"M","MISURA","PUNTI","TEMPO","PUNTI","MISURA","PUNTI","TOT. PUNTI",null,"TEMPO","PUNTI",null,null,null,3,0,0,"M","MISURA","PUNTI","TEMPO","PUNTI","MISURA","PUNTI","TOT. PUNTI",null,"TEMPO","PUNTI",null,null,null,3,0,0,"M","MISURA","PUNTI","TEMPO","PUNTI","MISURA","PUNTI","TOT. PUNTI",null,"TEMPO","PUNTI",null,null,null,3,0,0,"M","MISURA","PUNTI","TEMPO","PUNTI","MISURA","PUNTI","TOT. PUNTI",null,"TEMPO","PUNTI",null,null,null,3,0,0,"M","MISURA","PUNTI","TEMPO","PUNTI","MISURA","PUNTI","TOT. PUNTI",null,"TEMPO","PUNTI",null,null,null,3,0,0,"M","MISURA","PUNTI","TEMPO","PUNTI","MISURA","PUNTI","TOT. PUNTI",null,"TEMPO","PUNTI",null,null,null,3,0,0,"M","MISURA","PUNTI","TEMPO","PUNTI","MISURA","PUNTI","TOT. PUNTI",null,"TEMPO","PUNTI",null,null,null,3,0,0,"M","MISURA","PUNTI","TEMPO","PUNTI","MISURA","PUNTI","TOT. PUNTI",null,"TEMPO","PUNTI",null,null,null,3,0,0,"M","MISURA","PUNTI","TEMPO","PUNTI","MISURA","PUNTI","TOT. PUNTI",null,"TEMPO","PUNTI",null,null,null,3,0,0,"M","MISURA","PUNTI","TEMPO","PUNTI","MISURA","PUNTI","TOT. PUNTI",null,"TEMPO","PUNTI",null,null,null,3,0,0,"M","MISURA","PUNTI","TEMPO","PUNTI","MISURA","PUNTI","TOT. PUNTI",null,"TEMPO","PUNTI",null,null,null,3,0,0,"M","MISURA","PUNTI","TEMPO","PUNTI","MISURA","PUNTI","TOT. PUNTI",null,"TEMPO","PUNTI"]
[1,null,null,"F",null,null,null,null,null,null,null,null,null,null,{"$f":"B1","v":0},{"$f":"D1","v":0},null,1,"t","s","M",7,5,"4\"99",3,7,2,10,null,"2'00\"32",null,{"$f":"S1","v":"3D"},{"$f":"U1","v":"IC CAPRINO"},null,1,"tt","ss","M",6.5,4,"4\"99",3,7.4,2,9,null,"2'02\"34",null,{"$f":"AJ1","v":"3F"},{"$f":"AL1","v":"IC MONTEFORTE"},null,null,null,null,null,null,null,null,null,null,null,null,null,null,null,{"$f":"BA1","v":"3K"},{"$f":"BC1","v":"IC GREZZANA"},null,null,null,null,null,null,null,null,null,null,null,null,null,null,null,{"$f":"BR1","v":"3C"},{"$f":"BT1","v":"IC DOSSOBUONO"},null,null,null,null,null,null,null,null,null,null,null,null,null,null,null,{"$f":"CI1","v":"3H"},{"$f":"CK1","v":"IC BOSCO"},null,null,null,null,null,null,null,null,null,null,null,null,null,null,null,{"$f":"CZ1","v":"3L"},{"$f":"DB1","v":"IC LAVAGNO"},null,null,null,null,null,null,null,null,null,null,null,null,null,null,null,{"$f":"DQ1","v":"3B"},{"$f":"DS1","v":"IC LEGNAGO"},null,null,null,null,null,null,null,null,null,null,null,null,null,null,null,{"$f":"EH1","v":"3B"},{"$f":"EJ1","v":"IC SAN BONIFACIO"},null,null,null,null,null,null,null,null,null,null,null,null,null,null,null,{"$f":"EY1","v":"3F"},{"$f":"FA1","v":"IC SONA"},null,null,null,null,null,null,null,null,null,null,null,null,null,null,null,{"$f":"FP1","v":"3G"},{"$f":"FR1","v":"IC MARZANA"},null,null,null,null,null,null,null,null,null,null,null,null,null,null,null,{"$f":"GG1","v":"3D"},{"$f":"GI1","v":"IC LAVAGNO"},null,null,null,null,null,null,null,null,null,null,null,null,null,null,null,{"$f":"GX1","v":"3F"},{"$f":"GZ1","v":"IC BOSCO"},null,null,null,null,null,null,null,null,null,null,null,null,null,null,null,{"$f":"HO1","v":"3G"},{"$f":"HQ1","v":"IC SONA"},null,null,null,null,null,null,null,null,null,null,null,null,null,null,null,{"$f":"IF1","v":"3L"},{"$f":"IH1","v":"IC VR 02"},null,null,null,null,null,null,null,null,null,null,null,null,null,null,null,{"$f":"IW1","v":"3G"},{"$f":"IY1","v":"IC VR 14"},null,null,null,null,null,null,null,null,null,null,null,null,null,null,null,{"$f":"JN1","v":"3F"},{"$f":"JP1","v":"IC VR 17"},null,null,null,null,null,null,null,null,null,null,null,null,null,null,null,{"$f":"KE1","v":"3A"},{"$f":"KG1","v":"IC VR 06"},null,null,null,null,null,null,null,null,null,null,null,null,null,null,null,{"$f":"KV1","v":"3K"},{"$f":"KX1","v":"IC VR 19"},null,null,null,null,null,null,null,null,null,null,null,null,null,null,null,{"$f":"LM1","v":"3D"},{"$f":"LO1","v":"IC VR 08"},null,null,null,null,null,null,null,null,null,null,null,null,null,null,null,{"$f":"MD1","v":"3F"},{"$f":"MF1","v":"IC NEGRAR"}]
[2,null,null,"F",null,null,null,null,null,null,null,null,null,null,{"$f":"B1","v":0},{"$f":"D1","v":0},null,2,"v","c","M",8,5,"6\"45",1,9,4,10,null,null,null,{"$f":"S1","v":"3D"},{"$f":"U1","v":"IC CAPRINO"},null,2,"cc","ll","M",5.5,3,"5\"39",2,9.5,4,9,null,null,null,{"$f":"AJ1","v":"3F"},{"$f":"AL1","v":"IC MONTEFORTE"},null,null,null,null,null,null,null,null,null,null,null,null,null,null,null,{"$f":"BA1","v":"3K"},{"$f":"BC1","v":"IC GREZZANA"},null,null,null,null,null,null,null,null,null,null,null,null,null,null,null,{"$f":"BR1","v":"3C"},{"$f":"BT1","v":"IC DOSSOBUONO"},null,null,null,null,null,null,null,null,null,null,null,null,null,null,null,{"$f":"CI1","v":"3H"},{"$f":"CK1","v":"IC BOSCO"},null,null,null,null,null,null,null,null,null,null,null,null,null,null,null,{"$f":"CZ1","v":"3L"},{"$f":"DB1","v":"IC LAVAGNO"},null,null,null,null,null,null,null,null,null,null,null,null,null,null,null,{"$f":"DQ1","v":"3B"},{"$f":"DS1","v":"IC LEGNAGO"},null,null,null,null,null,null,null,null,null,null,null,null,null,null,null,{"$f":"EH1","v":"3B"},{"$f":"EJ1","v":"IC SAN BONIFACIO"},null,null,null,null,null,null,null,null,null,null,null,null,null,null,null,{"$f":"EY1","v":"3F"},{"$f":"FA1","v":"IC SONA"},null,null,null,null,null,null,null,null,null,null,null,null,null,null,null,{"$f":"FP1","v":"3G"},{"$f":"FR1","v":"IC MARZANA"},null,null,null,null,null,null,null,null,null,null,null,null,null,null,null,{"$f":"GG1","v":"3D"},{"$f":"GI1","v":"IC LAVAGNO"},null,null,null,null,null,null,null,null,null,null,null,null,null,null,null,{"$f":"GX1","v":"3F"},{"$f":"GZ1","v":"IC BOSCO"},null,null,null,null,null,null,null,null,null,null,null,null,null,null,null,{"$f":"HO1","v":"3G"},{"$f":"HQ1","v":"IC SONA"},null,null,null,null,null,null,null,null,null,null,null,null,null,null,null,{"$f":"IF1","v":"3L"},{"$f":"IH1","v":"IC VR 02"},null,null,null,null,null,null,null,null,null,null,null,null,null,null,null,{"$f":"IW1","v":"3G"},{"$f":"IY1","v":"IC VR 14"},null,null,null,null,null,null,null,null,null,null,null,null,null,null,null,{"$f":"JN1","v":"3F"},{"$f":"JP1","v":"IC VR 17"},null,null,null,null,null,null,null,null,null,null,null,null,null,null,null,{"$f":"KE1","v":"3A"},{"$f":"KG1","v":"IC VR 06"},null,null,null,null,null,null,null,null,null,null,null,null,null,null,null,{"$f":"KV1","v":"3K"},{"$f":"KX1","v":"IC VR 19"},null,null,null,null,null,null,null,null,null,null,null,null,null,null,null,{"$f":"LM1","v":"3D"},{"$f":"LO1","v":"IC VR 08"},null,null,null,null,null,null,null,null,null,null,null,null,null,null,null,{"$f":"MD1","v":"3F"},{"$f":"MF1","v":"IC NEGRAR"}]
[3,null,null,"F",null,null,null,null,null,null,null,null,null,null,{"$f":"B1","v":0},{"$f":"D1","v":0},null,3,"c","l","F",5,2,"5\"39",2,10,5,9,null,null,null,{"$f":"S1","v":"3D"},{"$f":"U1","v":"IC CAPRINO"},null,3,"tt","uu","F",8.5,5,"5\"59",1,8.5,3,9,null,null,null,{"$f":"AJ1","v":"3F"},{"$f":"AL1","v":"IC MONTEFORTE"},null,null,null,null,null,null,null,null,null,null,null,null,null,null,null,{"$f":"BA1","v":"3K"},{"$f":"BC1","v":"IC GREZZANA"},null,null,null,null,null,null,null,null,null,null,null,null,null,null,null,{"$f":"BR1","v":"3C"},{"$f":"BT1","v":"IC DOSSOBUONO"},null,null,null,null,null,null,null,null,null,null,null,null,null,null,null,{"$f":"CI1","v":"3H"},{"$f":"CK1","v":"IC BOSCO"},null,null,null,null,null,null,null,null,null,null,null,null,null,null,null,{"$f":"CZ1","v":"3L"},{"$f":"DB1","v":"IC LAVAGNO"},null,null,null,null,null,null,null,null,null,null,null,null,null,null,null,{"$f":"DQ1","v":"3B"},{"$f":"DS1","v":"IC LEGNAGO"},null,null,null,null,null,null,null,null,null,null,null,null,null,null,null,{"$f":"EH1","v":"3B"},{"$f":"EJ1","v":"IC SAN BONIFACIO"},null,null,null,null,null,null,null,null,null,null,null,null,null,null,null,{"$f":"EY1","v":"3F"},{"$f":"FA1","v":"IC SONA"},null,null,null,null,null,null,null,null,null,null,null,null,null,null,null,{"$f":"FP1","v":"3G"},{"$f":"FR1","v":"IC MARZANA"},null,null,null,null,null,null,null,null,null,null,null,null,null,null,null,{"$f":"GG1","v":"3D"},{"$f":"GI1","v":"IC LAVAGNO"},null,null,null,null,null,null,null,null,null,null,null,null,null,null,null,{"$f":"GX1","v":"3F"},{"$f":"GZ1","v":"IC BOSCO"},null,null,null,null,null,null,null,null,null,null,null,null,null,null,null,{"$f":"HO1","v":"3G"},{"$f":"HQ1","v":"IC SONA"},null,null,null,null,null,null,null,null,null,null,null,null,null,null,null,{"$f":"IF1","v":"3L"},{"$f":"IH1","v":"IC VR 02"},null,null,null,null,null,null,null,null,null,null,null,null,null,null,null,{"$f":"IW1","v":"3G"},{"$f":"IY1","v":"IC VR 14"},null,null,null,null,null,null,null,null,null,null,null,null,null,null,null,{"$f":"JN1","v":"3F"},{"$f":"JP1","v":"IC VR 17"},null,null,null,null,null,null,null,null,null,null,null,null,null,null,null,{"$f":"KE1","v":"3A"},{"$f":"KG1","v":"IC VR 06"},null,null,null,null,null,null,null,null,null,null,null,null,null,null,null,{"$f":"KV1","v":"3K"},{"$f":"KX1","v":"IC VR 19"},null,null,null,null,null,null,null,null,null,null,null,null,null,null,null,{"$f":"LM1","v":"3D"},{"$f":"LO1","v":"IC VR 08"},null,null,null,null,null,null,null,null,null,null,null,null,null,null,null,{"$f":"MD1","v":"3F"},{"$f":"MF1","v":"IC NEGRAR"}]
[4,null,null,"F",null,null,null,null,null,null,null,null,null,null,{"$f":"B1","v":0},{"$f":"D1","v":0},null,4,"t","u","F",8,5,"5\"59",1,8,3,9,null,null,null,{"$f":"S1","v":"3D"},{"$f":"U1","v":"IC CAPRINO"},null,4,"pp","gg","F",6.5,4,"6\"65",1,8.1,3,8,null,null,null,{"$f":"AJ1","v":"3F"},{"$f":"AL1","v":"IC MONTEFORTE"},null,null,null,null,null,null,null,null,null,null,null,null,null,null,null,{"$f":"BA1","v":"3K"},{"$f":"BC1","v":"IC GREZZANA"},null,null,null,null,null,null,null,null,null,null,null,null,null,null,null,{"$f":"BR1","v":"3C"},{"$f":"BT1","v":"IC DOSSOBUONO"},null,null,null,null,null,null,null,null,null,null,null,null,null,null,null,{"$f":"CI1","v":"3H"},{"$f":"CK1","v":"IC BOSCO"},null,null,null,null,null,null,null,null,null,null,null,null,null,null,null,{"$f":"CZ1","v":"3L"},{"$f":"DB1","v":"IC LAVAGNO"},null,null,null,null,null,null,null,null,null,null,null,null,null,null,null,{"$f":"DQ1","v":"3B"},{"$f":"DS1","v":"IC LEGNAGO"},null,null,null,null,null,null,null,null,null,null,null,null,null,null,null,{"$f":"EH1","v":"3B"},{"$f":"EJ1","v":"IC SAN BONIFACIO"},null,null,null,null,null,null,null,null,null,null,null,null,null,null,null,{"$f":"EY1","v":"3F"},{"$f":"FA1","v":"IC SONA"},null,null,null,null,null,null,null,null,null,null,null,null,null,null,null,{"$f":"FP1","v":"3G"},{"$f":"FR1","v":"IC MARZANA"},null,null,null,null,null,null,null,null,null,null,null,null,null,null,null,{"$f":"GG1","v":"3D"},{"$f":"GI1","v":"IC LAVAGNO"},null,null,null,null,null,null,null,null,null,null,null,null,null,null,null,{"$f":"GX1","v":"3F"},{"$f":"GZ1","v":"IC BOSCO"},null,null,null,null,null,null,null,null,null,null,null,null,null,null,null,{"$f":"HO1","v":"3G"},{"$f":"HQ1","v":"IC SONA"},null,null,null,null,null,null,null,null,null,null,null,null,null,null,null,{"$f":"IF1","v":"3L"},{"$f":"IH1","v":"IC VR 02"},null,null,null,null,null,null,null,null,null,null,null,null,null,null,null,{"$f":"IW1","v":"3G"},{"$f":"IY1","v":"IC VR 14"},null,null,null,null,null,null,null,null,null,null,null,null,null,null,null,{"$f":"JN1","v":"3F"},{"$f":"JP1","v":"IC VR 17"},null,null,null,null,null,null,null,null,null,null,null,null,null,null,null,{"$f":"KE1","v":"3A"},{"$f":"KG1","v":"IC VR 06"},null,null,null,null,null,null,null,null,null,null,null,null,null,null,null,{"$f":"KV1","v":"3K"},{"$f":"KX1","v":"IC VR 19"},null,null,null,null,null,null,null,null,null,null,null,null,null,null,null,{"$f":"LM1","v":"3D"},{"$f":"LO1","v":"IC VR 08"},null,null,null,null,null,null,null,null,null,null,null,null,null,null,null,{"$f":"MD1","v":"3F"},{"$f":"MF1","v":"IC NEGRAR"}]
[5,null,null,"F",null,null,null,null,null,null,null,null,null,null,{"$f":"B1","v":0},{"$f":"D1","v":0},null,5,0,0,"F",0,1,0,5,0,1,7,null,null,null,{"$f":"S1","v":"3D"},{"$f":"U1","v":"IC CAPRINO"},null,5,0,0,"F",0,1,0,5,0,1,7,null,null,null,{"$f":"AJ1","v":"3F"},{"$f":"AL1","v":"IC MONTEFORTE"},null,null,null,null,null,null,null,null,null,null,null,null,null,null,null,{"$f":"BA1","v":"3K"},{"$f":"BC1","v":"IC GREZZANA"},null,null,null,null,null,null,null,null,null,null,null,null,null,null,null,{"$f":"BR1","v":"3C"},{"$f":"BT1","v":"IC DOSSOBUONO"},null,null,null,null,null,null,null,null,null,null,null,null,null,null,null,{"$f":"CI1","v":"3H"},{"$f":"CK1","v":"IC BOSCO"},null,null,null,null,null,null,null,null,null,null,null,null,null,null,null,{"$f":"CZ1","v":"3L"},{"$f":"DB1","v":"IC LAVAGNO"},null,null,null,null,null,null,null,null,null,null,null,null,null,null,null,{"$f":"DQ1","v":"3B"},{"$f":"DS1","v":"IC LEGNAGO"},null,null,null,null,null,null,null,null,null,null,null,null,null,null,null,{"$f":"EH1","v":"3B"},{"$f":"EJ1","v":"IC SAN BONIFACIO"},null,null,null,null,null,null,null,null,null,null,null,null,null,null,null,{"$f":"EY1","v":"3F"},{"$f":"FA1","v":"IC SONA"},null,null,null,null,null,null,null,null,null,null,null,null,null,null,null,{"$f":"FP1","v":"3G"},{"$f":"FR1","v":"IC MARZANA"},null,null,null,null,null,null,null,null,null,null,null,null,null,null,null,{"$f":"GG1","v":"3D"},{"$f":"GI1","v":"IC LAVAGNO"},null,null,null,null,null,null,null,null,null,null,null,null,null,null,null,{"$f":"GX1","v":"3F"},{"$f":"GZ1","v":"IC BOSCO"},null,null,null,null,null,null,null,null,null,null,null,null,null,null,null,{"$f":"HO1","v":"3G"},{"$f":"HQ1","v":"IC SONA"},null,null,null,null,null,null,null,null,null,null,null,null,null,null,null,{"$f":"IF1","v":"3L"},{"$f":"IH1","v":"IC VR 02"},null,null,null,null,null,null,null,null,null,null,null,null,null,null,null,{"$f":"IW1","v":"3G"},{"$f":"IY1","v":"IC VR 14"},null,null,null,null,null,null,null,null,null,null,null,null,null,null,null,{"$f":"JN1","v":"3F"},{"$f":"JP1","v":"IC VR 17"},null,null,null,null,null,null,null,null,null,null,null,null,null,null,null,{"$f":"KE1","v":"3A"},{"$f":"KG1","v":"IC VR 06"},null,null,null,null,null,null,null,null,null,null,null,null,null,null,null,{"$f":"KV1","v":"3K"},{"$f":"KX1","v":"IC VR 19"},null,null,null,null,null,null,null,null,null,null,null,null,null,null,null,{"$f":"LM1","v":"3D"},{"$f":"LO1","v":"IC VR 08"},null,null,null,null,null,null,null,null,null,null,null,null,null,null,null,{"$f":"MD1","v":"3F"},{"$f":"MF1","v":"IC NEGRAR"}]
[6,null,null,"F",null,null,null,null,null,null,null,null,null,null,{"$f":"B1","v":0},{"$f":"D1","v":0},null,6,"m","a","F",6,5,"5\"58",2,8,5,12,null,null,null,{"$f":"S1","v":"3D"},{"$f":"U1","v":"IC CAPRINO"},null,6,"zz","gg","F",6.5,5,"5\"85",2,8.5,5,12,null,null,null,{"$f":"AJ1","v":"3F"},{"$f":"AL1","v":"IC MONTEFORTE"},null,null,null,null,null,null,null,null,null,null,null,null,null,null,null,{"$f":"BA1","v":"3K"},{"$f":"BC1","v":"IC GREZZANA"},null,null,null,null,null,null,null,null,null,null,null,null,null,null,null,{"$f":"BR1","v":"3C"},{"$f":"BT1","v":"IC DOSSOBUONO"},null,null,null,null,null,null,null,null,null,null,null,null,null,null,null,{"$f":"CI1","v":"3H"},{"$f":"CK1","v":"IC BOSCO"},null,null,null,null,null,null,null,null,null,null,null,null,null,null,null,{"$f":"CZ1","v":"3L"},{"$f":"DB1","v":"IC LAVAGNO"},null,null,null,null,null,null,null,null,null,null,null,null,null,null,null,{"$f":"DQ1","v":"3B"},{"$f":"DS1","v":"IC LEGNAGO"},null,null,null,null,null,null,null,null,null,null,null,null,null,null,null,{"$f":"EH1","v":"3B"},{"$f":"EJ1","v":"IC SAN BONIFACIO"},null,null,null,null,null,null,null,null,null,null,null,null,null,null,null,{"$f":"EY1","v":"3F"},{"$f":"FA1","v":"IC SONA"},null,null,null,null,null,null,null,null,null,null,null,null,null,null,null,{"$f":"FP1","v":"3G"},{"$f":"FR1","v":"IC MARZANA"},null,null,null,null,null,null,null,null,null,null,null,null,null,null,null,{"$f":"GG1","v":"3D"},{"$f":"GI1","v":"IC LAVAGNO"},null,null,null,null,null,null,null,null,null,null,null,null,null,null,null,{"$f":"GX1","v":"3F"},{"$f":"GZ1","v":"IC BOSCO"},null,null,null,null,null,null,null,null,null,null,null,null,null,null,null,{"$f":"HO1","v":"3G"},{"$f":"HQ1","v":"IC SONA"},null,null,null,null,null,null,null,null,null,null,null,null,null,null,null,{"$f":"IF1","v":"3L"},{"$f":"IH1","v":"IC VR 02"},null,null,null,null,null,null,null,null,null,null,null,null,null,null,null,{"$f":"IW1","v":"3G"},{"$f":"IY1","v":"IC VR 14"},null,null,null,null,null,null,null,null,null,null,null,null,null,null,null,{"$f":"JN1","v":"3F"},{"$f":"JP1","v":"IC VR 17"},null,null,null,null,null,null,null,null,null,null,null,null,null,null,null,{"$f":"KE1","v":"3A"},{"$f":"KG1","v":"IC VR 06"},null,null,null,null,null,null,null,null,null,null,null,null,null,null,null,{"$f":"KV1","v":"3K"},{"$f":"KX1","v":"IC VR 19"},null,null,null,null,null,null,null,null,null,null,null,null,null,null,null,{"$f":"LM1","v":"3D"},{"$f":"LO1","v":"IC VR 08"},null,null,null,null,null,null,null,null,null,null,null,null,null,null,null,{"$f":"MD1","v":"3F"},{"$f":"MF1","v":"IC NEGRAR"}]
[7,null,null,"F",null,null,null,null,null,null,null,null,null,null,{"$f":"B1","v":0},{"$f":"D1","v":0},null,7,"z","g","F",6,5,"5\"85",2,8,5,12,null,null,null,{"$f":"S1","v":"3D"},{"$f":"U1","v":"IC CAPRINO"},null,7,"mm","aa","F",5.5,4,"5\"58",2,6.7,3,9,null,null,null,{"$f":"AJ1","v":"3F"},{"$f":"AL1","v":"IC MONTEFORTE"},null,null,null,null,null,null,null,null,null,null,null,null,null,null,null,{"$f":"BA1","v":"3K"},{"$f":"BC1","v":"IC GREZZANA"},null,null,null,null,null,null,null,null,null,null,null,null,null,null,null,{"$f":"BR1","v":"3C"},{"$f":"BT1","v":"IC DOSSOBUONO"},null,null,null,null,null,null,null,null,null,null,null,null,null,null,null,{"$f":"CI1","v":"3H"},{"$f":"CK1","v":"IC BOSCO"},null,null,null,null,null,null,null,null,null,null,null,null,null,null,null,{"$f":"CZ1","v":"3L"},{"$f":"DB1","v":"IC LAVAGNO"},null,null,null,null,null,null,null,null,null,null,null,null,null,null,null,{"$f":"DQ1","v":"3B"},{"$f":"DS1","v":"IC LEGNAGO"},null,null,null,null,null,null,null,null,null,null,null,null,null,null,null,{"$f":"EH1","v":"3B"},{"$f":"EJ1","v":"IC SAN BONIFACIO"},null,null,null,null,null,null,null,null,null,null,null,null,null,null,null,{"$f":"EY1","v":"3F"},{"$f":"FA1","v":"IC SONA"},null,null,null,null,null,null,null,null,null,null,null,null,null,null,null,{"$f":"FP1","v":"3G"},{"$f":"FR1","v":"IC MARZANA"},null,null,null,null,null,null,null,null,null,null,null,null,null,null,null,{"$f":"GG1","v":"3D"},{"$f":"GI1","v":"IC LAVAGNO"},null,null,null,null,null,null,null,null,null,null,null,null,null,null,null,{"$f":"GX1","v":"3F"},{"$f":"GZ1","v":"IC BOSCO"},null,null,null,null,null,null,null,null,null,null,null,null,null,null,null,{"$f":"HO1","v":"3G"},{"$f":"HQ1","v":"IC SONA"},null,null,null,null,null,null,null,null,null,null,null,null,null,null,null,{"$f":"IF1","v":"3L"},{"$f":"IH1","v":"IC VR 02"},null,null,null,null,null,null,null,null,null,null,null,null,null,null,null,{"$f":"IW1","v":"3G"},{"$f":"IY1","v":"IC VR 14"},null,null,null,null,null,null,null,null,null,null,null,null,null,null,null,{"$f":"JN1","v":"3F"},{"$f":"JP1","v":"IC VR 17"},null,null,null,null,null,null,null,null,null,null,null,null,null,null,null,{"$f":"KE1","v":"3A"},{"$f":"KG1","v":"IC VR 06"},null,null,null,null,null,null,null,null,null,null,null,null,null,null,null,{"$f":"KV1","v":"3K"},{"$f":"KX1","v":"IC VR 19"},null,null,null,null,null,null,null,null,null,null,null,null,null,null,null,{"$f":"LM1","v":"3D"},{"$f":"LO1","v":"IC VR 08"},null,null,null,null,null,null,null,null,null,null,null,null,null,null,null,{"$f":"MD1","v":"3F"},{"$f":"MF1","v":"IC NEGRAR"}]
[8,null,null,"F",null,null,null,null,null,null,null,null,null,null,{"$f":"B1","v":0},{"$f":"D1","v":0},null,8,"a","f","F",5,3,"4\"99",4,6,2,9,null,null,null,{"$f":"S1","v":"3D"},{"$f":"U1","v":"IC CAPRINO"},null,8,"tt","ll","F",6.4,5,"6\"01",1,6.5,3,9,null,null,null,{"$f":"AJ1","v":"3F"},{"$f":"AL1","v":"IC MONTEFORTE"},null,null,null,null,null,null,null,null,null,null,null,null,null,null,null,{"$f":"BA1","v":"3K"},{"$f":"BC1","v":"IC GREZZANA"},null,null,null,null,null,null,null,null,null,null,null,null,null,null,null,{"$f":"BR1","v":"3C"},{"$f":"BT1","v":"IC DOSSOBUONO"},null,null,null,null,null,null,null,null,null,null,null,null,null,null,null,{"$f":"CI1","v":"3H"},{"$f":"CK1","v":"IC BOSCO"},null,null,null,null,null,null,null,null,null,null,null,null,null,null,null,{"$f":"CZ1","v":"3L"},{"$f":"DB1","v":"IC LAVAGNO"},null,null,null,null,null,null,null,null,null,null,null,null,null,null,null,{"$f":"DQ1","v":"3B"},{"$f":"DS1","v":"IC LEGNAGO"},null,null,null,null,null,null,null,null,null,null,null,null,null,null,null,{"$f":"EH1","v":"3B"},{"$f":"EJ1","v":"IC SAN BONIFACIO"},null,null,null,null,null,null,null,null,null,null,null,null,null,null,null,{"$f":"EY1","v":"3F"},{"$f":"FA1","v":"IC SONA"},null,null,null,null,null,null,null,null,null,null,null,null,null,null,null,{"$f":"FP1","v":"3G"},{"$f":"FR1","v":"IC MARZANA"},null,null,null,null,null,null,null,null,null,null,null,null,null,null,null,{"$f":"GG1","v":"3D"},{"$f":"GI1","v":"IC LAVAGNO"},null,null,null,null,null,null,null,null,null,null,null,null,null,null,null,{"$f":"GX1","v":"3F"},{"$f":"GZ1","v":"IC BOSCO"},null,null,null,null,null,null,null,null,null,null,null,null,null,null,null,{"$f":"HO1","v":"3G"},{"$f":"HQ1","v":"IC SONA"},null,null,null,null,null,null,null,null,null,null,null,null,null,null,null,{"$f":"IF1","v":"3L"},{"$f":"IH1","v":"IC VR 02"},null,null,null,null,null,null,null,null,null,null,null,null,null,null,null,{"$f":"IW1","v":"3G"},{"$f":"IY1","v":"IC VR 14"},null,null,null,null,null,null,null,null,null,null,null,null,null,null,null,{"$f":"JN1","v":"3F"},{"$f":"JP1","v":"IC VR 17"},null,null,null,null,null,null,null,null,null,null,null,null,null,null,null,{"$f":"KE1","v":"3A"},{"$f":"KG1","v":"IC VR 06"},null,null,null,null,null,null,null,null,null,null,null,null,null,null,null,{"$f":"KV1","v":"3K"},{"$f":"KX1","v":"IC VR 19"},null,null,null,null,null,null,null,null,null,null,null,null,null,null,null,{"$f":"LM1","v":"3D"},{"$f":"LO1","v":"IC VR 08"},null,null,null,null,null,null,null,null,null,null,null,null,null,null,null,{"$f":"MD1","v":"3F"},{"$f":"MF1","v":"IC NEGRAR"}]
[9,null,null,"F",null,null,null,null,null,null,null,null,null,null,{"$f":"B1","v":0},{"$f":"D1","v":0},null,9,"r","g","F",6,5,"6\"10",1,7,3,9,null,null,null,{"$f":"S1","v":"3D"},{"$f":"U1","v":"IC CAPRINO"},null,9,"rr","gg","F",6.5,5,"6\"10",1,6.5,3,9,null,null,null,{"$f":"AJ1","v":"3F"},{"$f":"AL1","v":"IC MONTEFORTE"},null,null,null,null,null,null,null,null,null,null,null,null,null,null,null,{"$f":"BA1","v":"3K"},{"$f":"BC1","v":"IC GREZZANA"},null,null,null,null,null,null,null,null,null,null,null,null,null,null,null,{"$f":"BR1","v":"3C"},{"$f":"BT1","v":"IC DOSSOBUONO"},null,null,null,null,null,null,null,null,null,null,null,null,null,null,null,{"$f":"CI1","v":"3H"},{"$f":"CK1","v":"IC BOSCO"},null,null,null,null,null,null,null,null,null,null,null,null,null,null,null,{"$f":"CZ1","v":"3L"},{"$f":"DB1","v":"IC LAVAGNO"},null,null,null,null,null,null,null,null,null,null,null,null,null,null,null,{"$f":"DQ1","v":"3B"},{"$f":"DS1","v":"IC LEGNAGO"},null,null,null,null,null,null,null,null,null,null,null,null,null,null,null,{"$f":"EH1","v":"3B"},{"$f":"EJ1","v":"IC SAN BONIFACIO"},null,null,null,null,null,null,null,null,null,null,null,null,null,null,null,{"$f":"EY1","v":"3F"},{"$f":"FA1","v":"IC SONA"},null,null,null,null,null,null,null,null,null,null,null,null,null,null,null,{"$f":"FP1","v":"3G"},{"$f":"FR1","v":"IC MARZANA"},null,null,null,null,null,null,null,null,null,null,null,null,null,null,null,{"$f":"GG1","v":"3D"},{"$f":"GI1","v":"IC LAVAGNO"},null,null,null,null,null,null,null,null,null,null,null,null,null,null,null,{"$f":"GX1","v":"3F"},{"$f":"GZ1","v":"IC BOSCO"},null,null,null,null,null,null,null,null,null,null,null,null,null,null,null,{"$f":"HO1","v":"3G"},{"$f":"HQ1","v":"IC SONA"},null,null,null,null,null,null,null,null,null,null,null,null,null,null,null,{"$f":"IF1","v":"3L"},{"$f":"IH1","v":"IC VR 02"},null,null,null,null,null,null,null,null,null,null,null,null,null,null,null,{"$f":"IW1","v":"3G"},{"$f":"IY1","v":"IC VR 14"},null,null,null,null,null,null,null,null,null,null,null,null,null,null,null,{"$f":"JN1","v":"3F"},{"$f":"JP1","v":"IC VR 17"},null,null,null,null,null,null,null,null,null,null,null,null,null,null,null,{"$f":"KE1","v":"3A"},{"$f":"KG1","v":"IC VR 06"},null,null,null,null,null,null,null,null,null,null,null,null,null,null,null,{"$f":"KV1","v":"3K"},{"$f":"KX1","v":"IC VR 19"},null,null,null,null,null,null,null,null,null,null,null,null,null,null,null,{"$f":"LM1","v":"3D"},{"$f":"LO1","v":"IC VR 08"},null,null,null,null,null,null,null,null,null,null,null,null,null,null,null,{"$f":"MD1","v":"3F"},{"$f":"MF1","v":"IC NEGRAR"}]
[10,null,null,"F",null,null,null,null,null,null,null,null,null,null,{"$f":"B1","v":0},{"$f":"D1","v":0},null,10,"g","n","F",5,3,"5\"23",3,6,2,8,null,null,null,{"$f":"S1","v":"3D"},{"$f":"U1","v":"IC CAPRINO"},null,10,"gg","nn","F",5.4,4,"5\"23",3,5,1,8,null,null,null,{"$f":"AJ1","v":"3F"},{"$f":"AL1","v":"IC MONTEFORTE"},null,null,null,null,null,null,null,null,null,null,null,null,null,null,null,{"$f":"BA1","v":"3K"},{"$f":"BC1","v":"IC GREZZANA"},null,null,null,null,null,null,null,null,null,null,null,null,null,null,null,{"$f":"BR1","v":"3C"},{"$f":"BT1","v":"IC DOSSOBUONO"},null,null,null,null,null,null,null,null,null,null,null,null,null,null,null,{"$f":"CI1","v":"3H"},{"$f":"CK1","v":"IC BOSCO"},null,null,null,null,null,null,null,null,null,null,null,null,null,null,null,{"$f":"CZ1","v":"3L"},{"$f":"DB1","v":"IC LAVAGNO"},null,null,null,null,null,null,null,null,null,null,null,null,null,null,null,{"$f":"DQ1","v":"3B"},{"$f":"DS1","v":"IC LEGNAGO"},null,null,null,null,null,null,null,null,null,null,null,null,null,null,null,{"$f":"EH1","v":"3B"},{"$f":"EJ1","v":"IC SAN BONIFACIO"},null,null,null,null,null,null,null,null,null,null,null,null,null,null,null,{"$f":"EY1","v":"3F"},{"$f":"FA1","v":"IC SONA"},null,null,null,null,null,null,null,null,null,null,null,null,null,null,null,{"$f":"FP1","v":"3G"},{"$f":"FR1","v":"IC MARZANA"},null,null,null,null,null,null,null,null,null,null,null,null,null,null,null,{"$f":"GG1","v":"3D"},{"$f":"GI1","v":"IC LAVAGNO"},null,null,null,null,null,null,null,null,null,null,null,null,null,null,null,{"$f":"GX1","v":"3F"},{"$f":"GZ1","v":"IC BOSCO"},null,null,null,null,null,null,null,null,null,null,null,null,null,null,null,{"$f":"HO1","v":"3G"},{"$f":"HQ1","v":"IC SONA"},null,null,null,null,null,null,null,null,null,null,null,null,null,null,null,{"$f":"IF1","v":"3L"},{"$f":"IH1","v":"IC VR 02"},null,null,null,null,null,null,null,null,null,null,null,null,null,null,null,{"$f":"IW1","v":"3G"},{"$f":"IY1","v":"IC VR 14"},null,null,null,null,null,null,null,null,null,null,null,null,null,null,null,{"$f":"JN1","v":"3F"},{"$f":"JP1","v":"IC VR 17"},null,null,null,null,null,null,null,null,null,null,null,null,null,null,null,{"$f":"KE1","v":"3A"},{"$f":"KG1","v":"IC VR 06"},null,null,null,null,null,null,null,null,null,null,null,null,null,null,null,{"$f":"KV1","v":"3K"},{"$f":"KX1","v":"IC VR 19"},null,null,null,null,null,null,null,null,null,null,null,null,null,null,null,{"$f":"LM1","v":"3D"},{"$f":"LO1","v":"IC VR 08"},null,null,null,null,null,null,null,null,null,null,null,null,null,null,null,{"$f":"MD1","v":"3F"},{"$f":"MF1","v":"IC NEGRAR"}]
[null,null,null,null,null,null,null,null,null,null,null,null,null,null,null,null,null,null,null,null,null,null,null,null,null,null,null,95,null,null,null,null,null,null,null,null,null,null,null,null,null,null,null,null,89]
[]
["N.","ISTITUTO","CLASSE","PARZIALE PUNTI","STAFFETTA",null,"PUNTEGGIO TOTALE SCUOLE",null,null,null,null,null,null,null,null,null,null,"N.","ISTITUTO/PLESSO","CLASSE","PARZIALE PUNTI","STAFFETTA",null,"PUNTEGGIO TOTALE SCUOLE"]
[null,null,null,null,"TEMPO","PUNTI",null,null,null,null,null,null,null,null,null,null,null,null,null,null,null,"TEMPO","PUNTI"]
[1]
[null,null,null,null,null,null,null,null,null,null,null,null,null,null,null,null,null,null,null,null,null,null,null,null,null,null,null,null,null,null,null,null,null,null,"N.","ISTITUTO/PLESSO","CLASSE","PARZIALE PUNTI","STAFFETTA",null,"PUNTEGGIO TOTALE SCUOLE",null,null,null,null,null,null,null,null,null,null,"N.","ISTITUTO/PLESSO","CLASSE","PARZIALE PUNTI","STAFFETTA",null,"PUNTEGGIO TOTALE SCUOLE",null,null,null,null,null,null,null,null,null,null,"N.","ISTITUTO/PLESSO","CLASSE","PARZIALE PUNTI","STAFFETTA",null,"PUNTEGGIO TOTALE SCUOLE",null,null,null,null,null,null,null,null,null,null,"N.","ISTITUTO/PLESSO","CLASSE","PARZIALE PUNTI","STAFFETTA",null,"PUNTEGGIO TOTALE SCUOLE",null,null,null,null,null,null,null,null,null,null,"N.","ISTITUTO/PLESSO","CLASSE","PARZIALE PUNTI","STAFFETTA",null,"PUNTEGGIO TOTALE SCUOLE",null,null,null,null,null,null,null,null,null,null,"N.","ISTITUTO/PLESSO","CLASSE","PARZIALE PUNTI","STAFFETTA",null,"PUNTEGGIO TOTALE SCUOLE",null,null,null,null,null,null,null,null,null,null,"N.","ISTITUTO/PLESSO","CLASSE","PARZIALE PUNTI","STAFFETTA",null,"PUNTEGGIO TOTALE SCUOLE",null,null,null,null,null,null,null,null,null,null,"N.","ISTITUTO/PLESSO","CLASSE","PARZIALE PUNTI","STAFFETTA",null,"PUNTEGGIO TOTALE SCUOLE",null,null,null,null,null,null,null,null,null,null,"N.","ISTITUTO/PLESSO","CLASSE","PARZIALE PUNTI","STAFFETTA",null,"PUNTEGGIO TOTALE SCUOLE",null,null,null,null,null,null,null,null,null,null,"N.","ISTITUTO/PLESSO","CLASSE","PARZIALE PUNTI","STAFFETTA",null,"PUNTEGGIO TOTALE SCUOLE",null,null,null,null,null,null,null,null,null,null,"N.","ISTITUTO/PLESSO","CLASSE","PARZIALE PUNTI","STAFFETTA",null,"PUNTEGGIO TOTALE SCUOLE",null,null,null,null,null,null,null,null,null,null,"N.","ISTITUTO/PLESSO","CLASSE","PARZIALE PUNTI","STAFFETTA",null,"PUNTEGGIO TOTALE SCUOLE",null,null,null,null,null,null,null,null,null,null,"N.","ISTITUTO/PLESSO","CLASSE","PARZIALE PUNTI","STAFFETTA",null,"PUNTEGGIO TOTALE SCUOLE",null,null,null,null,null,null,null,null,null,null,"N.","ISTITUTO/PLESSO","CLASSE","PARZIALE PUNTI","STAFFETTA",null,"PUNTEGGIO TOTALE SCUOLE",null,null,null,null,null,null,null,null,null,null,"N.","ISTITUTO/PLESSO","CLASSE","PARZIALE PUNTI","STAFFETTA",null,"PUNTEGGIO TOTALE SCUOLE",null,null,null,null,null,null,null,null,null,null,"N.","ISTITUTO/PLESSO","CLASSE","PARZIALE PUNTI","STAFFETTA",null,"PUNTEGGIO TOTALE SCUOLE",null,null,null,null,null,null,null,null,null,null,"N.","ISTITUTO/PLESSO","CLASSE","PARZIALE PUNTI","STAFFETTA",null,"PUNTEGGIO TOTALE SCUOLE",null,null,null,null,null,null,null,null,null,null,"N.","ISTITUTO/PLESSO","CLASSE","PARZIALE PUNTI","STAFFETTA",null,"PUNTEGGIO TOTALE SCUOLE",null,null,null,null,null,null,null,null,null,null,"N.","ISTITUTO/PLESSO","CLASSE","PARZIALE PUNTI","STAFFETTA",null,"PUNTEGGIO TOTALE SCUOLE"]
[null,null,null,null,null,null,null,null,null,null,null,null,null,null,null,null,null,null,null,null,null,null,null,null,null,null,null,null,null,null,null,null,null,null,null,null,null,null,"TEMPO","PUNTI",null,null,null,null,null,null,null,null,null,null,null,null,null,null,null,"TEMPO","PUNTI",null,null,null,null,null,null,null,null,null,null,null,null,null,null,null,"TEMPO","PUNTI",null,null,null,null,null,null,null,null,null,null,null,null,null,null,null,"TEMPO","PUNTI",null,null,null,null,null,null,null,null,null,null,null,null,null,null,null,"TEMPO","PUNTI",null,null,null,null,null,null,null,null,null,null,null,null,null,null,null,"TEMPO","PUNTI",null,null,null,null,null,null,null,null,null,null,null,null,null,null,null,"TEMPO","PUNTI",null,null,null,null,null,null,null,null,null,null,null,null,null,null,null,"TEMPO","PUNTI",null,null,null,null,null,null,null,null,null,null,null,null,null,null,null,"TEMPO","PUNTI",null,null,null,null,null,null,null,null,null,null,null,null,null,null,null,"TEMPO","PUNTI",null,null,null,null,null,null,null,null,null,null,null,null,null,null,null,"TEMPO","PUNTI",null,null,null,null,null,null,null,null,null,null,null,null,null,null,null,"TEMPO","PUNTI",null,null,null,null,null,null,null,null,null,null,null,null,null,null,null,"TEMPO","PUNTI",null,null,null,null,null,null,null,null,null,null,null,null,null,null,null,"TEMPO","PUNTI",null,null,null,null,null,null,null,null,null,null,null,null,null,null,null,"TEMPO","PUNTI",null,null,null,null,null,null,null,null,null,null,null,null,null,null,null,"TEMPO","PUNTI",null,null,null,null,null,null,null,null,null,null,null,null,null,null,null,"TEMPO","PUNTI",null,null,null,null,null,null,null,null,null,null,null,null,null,null,null,"TEMPO","PUNTI",null,null,null,null,null,null,null,null,null,null,null,null,null,null,null,"TEMPO","PUNTI"]
[null,"multiPROVE (FUNICELLA-ESAGONO-LANCIO) + STAFFETTA"]
[null,"A.S. 2020-'21"]
[null,"CATEGORIA: ISTITUTI SUPERIORI"]
[null,"CLASSIFICA PER ISTITUTI"]
[]
["N.","ISTITUTO","CLASSE","PARZIALE PUNTI","STAFFETTA",null,"PUNTEGGIO TOTALE SCUOLE"]
[null,null,null,null,"TEMPO","PUNTI"]
[1,null,null,null,null,null,{"$f":"SUM(D30,F30)","v":0}]
[2,null,null,null,null,null,0]
[3,null,null,null,null,null,0]
[4,null,null,null,null,null,0]
[5,null,null,null,null,null,0]
[6,null,null,null,null,null,0]
[7,null,null,null,null,null,0]
[8,null,null,null,null,null,0]
[9,null,null,null,null,null,0]
[10,null,null,null,null,null,0]
[11,null,null,null,null,null,0]
[12,null,null,null,null,null,0]
[13,null,null,null,null,null,0]
[14,null,null,null,null,null,0]
[15,null,null,null,null,null,0]
[16,null,null,null,null,null,0]
[17,null,null,null,null,null,0]
[18,null,null,null,null,null,0]
[19,null,null,null,null,null,0]
[20,null,null,null,null,null,0]
[21,null,null,null,null,null,0]
[22,null,null,null,null,null,0]
[23,null,null,null,null,null,0]
[24,null,null,null,null,null,0]
[25,null,null,null,null,null,0]
[26,null,null,null,null,null,0]
[27,null,null,null,null,null,0]
[28,null,null,null,null,null,0]
[29,null,null,null,null,null,0]
[30,null,null,null,null,null,0]
[31,null,null,null,null,null,0]
[32,null,null,null,null,null,0]
[33,null,null,null,null,null,{"$f":"SUM(D62,F62)","v":0}]
[34,null,null,null,null,null,0]
[35,null,null,null,null,null,0]
[36,null,null,null,null,null,0]
[37,null,null,null,null,null,0]
[38,null,null,null,null,null,0]
[39,null,null,null,null,null,0]
[40,null,null,null,null,null,0]
[41,null,null,null,null,null,0]
[42,null,null,null,null,null,0]
[43,null,null,null,null,null,0]
[44,null,null,null,null,null,0]
[45,null,null,null,null,null,0]
[46,null,null,null,null,null,0]
[47,null,null,null,null,null,0]
[48,null,null,null,null,null,0]
[49,null,null,null,null,null,0]
[50,null,null,null,null,null,0]
[51,null,null,null,null,null,0]
[52,null,null,null,null,null,0]
[53,null,null,null,null,null,0]
[54,null,null,null,null,null,0]
[55,null,null,null,null,null,0]
[56,null,null,null,null,null,0]
[57,null,null,null,null,null,0]
[58,null,null,null,null,null,0]
[59,null,null,null,null,null,0]
[60,null,null,null,null,null,0]
[61,null,null,null,null,null,0]
[62,null,null,null,null,null,0]
[63,null,null,null,null,null,0]
[64,null,null,null,null,null,0]
[65,null,null,null,null,null,{"$f":"SUM(D94,F94)","v":0}]
[66,null,null,null,null,null,0]
[67,null,null,null,null,null,0]
[68,null,null,null,null,null,0]
[69,null,null,null,null,null,0]
[70,null,null,null,null,null,0]
[71,null,null,null,null,null,0]
[72,null,null,null,null,null,0]
[73,null,null,null,null,null,0]
[74,null,null,null,null,null,0]
[75,null,null,null,null,null,0]
[76,null,null,null,null,null,0]
[77,null,null,null,null,null,0]
[78,null,null,null,null,null,0]
[79,null,null,null,null,null,0]
[80,null,null,null,null,null,0]
[81,null,null,null,null,null,0]
[82,null,null,null,null,null,0]
[83,null,null,null,null,null,0]
[84,null,null,null,null,null,0]
[85,null,null,null,null,null,0]
[86,null,null,null,null,null,0]
[87,null,null,null,null,null,0]
[88,null,null,null,null,null,0]
[89,null,null,null,null,null,0]
[90,null,null,null,null,null,0]
[91,null,null,null,null,null,0]
[92,null,null,null,null,null,0]
[93,null,null,null,null,null,0]
[94,null,null,null,null,null,0]
[95,null,null,null,null,null,0]
[96,null,null,null,null,null,0]
[97,null,null,null,null,null,{"$f":"SUM(D126,F126)","v":0}]
[98,null,null,null,null,null,0]
[99,null,null,null,null,null,0]
[100,null,null,null,null,null,0]
[101,null,null,null,null,null,0]
[102,null,null,null,null,null,0]
[103,null,null,null,null,null,0]
[104,null,null,null,null,null,0]
[105,null,null,null,null,null,0]
[106,null,null,null,null,null,0]
[107,null,null,null,null,null,0]
[108,null,null,null,null,null,0]
[109,null,null,null,null,null,0]
[110,null,null,null,null,null,0]
[111,null,null,null,null,null,0]
[112,null,null,null,null,null,0]
[113,null,null,null,null,null,0]
[114,null,null,null,null,null,0]
[115,null,null,null,null,null,0]
[116,null,null,null,null,null,0]
[117,null,null,null,null,null,0]
[118,null,null,null,null,null,0]
[119,null,null,null,null,null,0]
[120,null,null,null,null,null,0]
[121,null,null,null,null,null,0]

{"sheet":"PARAMETRI","index":6,"n_rows":37,"n_cols":20,"rows_kept":37,"cut":false,"hidden":true,"merged":[[0,0,0,1],[0,2,0,8],[12,1,13,1],[12,2,13,2],[12,3,12,5],[12,6,12,8],[11,1,11,8],[2,1,2,8],[3,1,4,1],[3,2,4,2],[3,3,3,5],[3,6,3,8],[30,1,30,3],[30,5,30,7],[20,1,20,8],[21,1,22,1],[21,2,22,2],[21,3,21,5],[21,6,21,8],[30,8,30,12]]}
["superiori",null,"PARAMETRI DI RIFERIMENTO"]
[]
[null,"FUNICELLA 30\""]
[null,"punti","PUNTI","MASCHI",null,null,"FEMMINE"]
[null,null,null,"I","II","III","I","II","III"]
[null,5,5,89,null,null,84]
[null,4,4,74,null,null,69]
[null,3,3,59,null,null,56]
[null,2,2,39,null,null,39]
[null,1,1,"<39",null,null,"<39"]
[null,0,0,0,null,null,0]
[null,"PROVA DELL'ESAGONO"]
[null,"punti","PUNTI","MASCHI",null,null,"FEMMINE"]
[null,null,null,"I","II","III","I","II","III"]
[null,5,5,"20\"01",null,null,"25\"01"]
[null,4,4,"25\"01",null,null,"30\"01"]
[null,3,3,"30\"01",null,null,"35\"01"]
[null,2,2,"35\"01",null,null,"40\"01"]
[null,1,1,"<=35\"00",null,null,"<=40\"01",null,null,null,null,null,null,null,null,null,null,null,null," "]
[null,0,0,1,null,null,1]
[null,"LANCIO DA SEDUTI PALLA MEDICA KG.2"]
[null,"punti","PUNTI","MASCHI",null,null,"FEMMINE"]
[null,null,null,"I","II","III","I","II","III"]
[null,5,5,8.49,null,null,5.59]
[null,4,4,7.49,null,null,4.99]
[null,3,3,6.49,null,null,4.3899999999999997]
[null,2,2,5.49,null,null,3.79]
[null,1,1,"<5,50",null,null,"<3,80"]
[null,0,0,0,null,null,0]
[]
[null,"SALTELLI FUNICELLA 30\"",null,null,null,"PROVA DELL'ESAGONO",null,null,"LANCIO SEDUTI PALLA MEDICA KG2"]
[null,"punti","mas","fem",null,"punti","mas","fem",null,"punti","mas","fem"]
[null,5,">=90",">=85",null,5,"20\"00","25\"00",null,5,">=8,50",">=5,60"]
[null,4,75,70,null,4,"25\"00","30\"00",null,4,7.5,5]
[null,3,60,57,null,3,"30\"00","35\"00",null,3,6.5,4.4000000000000004]
[null,2,40,40,null,2,"35\"00","40\"00",null,2,5.5,3.8]
[null,1,"<40","<40",null,1,">35\"00",">40\"00",null,1,"<5,50","<3,80"]